Workbook

Sheet Hoja1
B2: ESTADOS FINANCIEROS
B3: CORRESPONDIENTE AL PERIODO INICIADO EL 1º DE ENERO DE 2021 AL 30 DE SETIEMBRE DE 2021.
B4: DENOMINACION: BRICAPAR S.A.
B5: DOMICILIO LEGAL: AVENIDA ARTIGAS N° 3443- ASUNCION TELEFONO: 295 006
B6: E-MAIL : | C6: MANUEL.JIMENEZ@BRICAPAR.COM.PY
C7: MONICA.RODINO@BRICAPAR.COM.PY
C8: NORMA.AGUILAR@BRICAPAR.COM.PY
B9: SITIO WED: WWW.BRICAPAR.COM.PY
B10: ACTIVIDAD PRINCIPAL: Producción de carbón vegetal -Comercio al por menor de combustible de uso domestico, leña y carbón.
B11: ACTIVIDADES SECUNDARIAS: Comercio al por menor y mayor de productos en minimercados y despensas
B12: INSCRIPCION EN EL REGISTRO PÚBLICO DE COMERCIO Del Estatuto o Contrato Social: N° 178 - 31/03/1975 De La Última Modificación:Escritura Pública N° 100 del 10 de diciembre del 2018, inscripta bajo el N° 02, folio N° 26, en fecha 03 de abril del 2019, a cargo de la Escribana Pública Irene Ybarra.
B14: INSCRIPCION EN LA COMISION NACIONAL DE VALORES: EN PROCESO
B15: FECHA DE VENCIMIENTO DEL ESTATUTO O CONTRATO SOCIAL: AÑO 2094
B16: ADMINISTRACIÓN
B37: COMPOSICION DEL CAPITAL: Acciones Ordinarias nominativas.
B38: ACCIONES: Guaraníes 3.000.000.- Cada Una.
B39: COMPOSICIÓN ACCIONARIA:

Sheet Indice
B1: Sociedad: | C1: BRICAPAR SA
S2: 1 | T2: Enero
S3: 2 | T3: Febrero
S4: 3 | T4: Marzo
S5: 4 | T5: Abril
A6: Fecha Presentación: | B6: 2021-09-30 | S6: 5 | T6: Mayo
S7: 6 | T7: Junio
S8: 7 | T8: Julio
C9: INDICE | D9: REF. | S9: 8 | T9: Agosto
B10: Informacion General | S10: 9 | T10: Septiembre
C11: Descripción de la naturaleza y del negocio de la Sociedad | D11: Nota 1 | S11: 10 | T11: Octubre
C12: Resumen de las principales políticas contables | D12: Nota 2 | S12: 11 | T12: Noviembre
B13: Balance General | D13: BG | S13: 12 | T13: Diciembre
C14: Efectivo y equivalente de efectivo | D14: Nota 3
C15: Inversiones temporales | D15: Nota 4
C16: Cuentas por cobrar comerciales | D16: Nota 5
C17: Otros créditos | D17: Nota 6
C18: Cuentas por cobrar comerciales | D18: Nota 5
C19: Inventarios | D19: Nota 7
C20: Inversión en asociadas | D20: Nota 8
C21: Propiedades, planta y equipo | D21: Nota 9
C22: Activos disponibles para la venta | D22: Nota 10
C23: Activos intangibles | D23: Nota 11
C24: Goodwill | D24: Nota 12
C25: Cuentas por pagar comerciales | D25: Nota 13
C26: Préstamos a corto plazo | D26: Nota 14
C27: Porción corriente de la deuda a largo plazo | D27: Nota 15
C28: Remuneraciones y cargas sociales a pagar | D28: Nota 16
C29: Impuestos a pagar | D29: Nota 17
C30: Provisiones | D30: Nota 18
C31: Otros pasivos corrientes | D31: Nota 19
C32: Prestamos a largo plazo | D32: Nota 14
C33: Otros pasivos no corrientes | D33: Nota 19
C34: Capital integrado | D34: Nota 20
C35: Reserva de revalúo | D35: Nota 21
C36: Reserva legal | D36: Nota 21
C37: Reservas estatutarias | D37: Nota 21
C38: Reservas facultativas | D38: Nota 21
C39: Diferencia transitoria por conversión | D39: Nota 22
C40: Resultados acumulados | D40: Nota 23
C41: Interés minoritario | D41: Nota 24
B42: Estado de Resultados | D42: ER
C43: Ventas | D43: Nota 25
C44: Costo de ventas | D44: Nota 26
C45: Gastos de ventas | D45: Nota 27
C46: Gastos administrativos | D46: Nota 27
C47: Otros ingresos y gastos operativos | D47: Nota 28
C48: Ingresos financieros - neto | D48: Nota 29
C49: Gastos financieros - neto | D49: Nota 29
C50: Resultado de inversiones en asociadas | D50: Nota 30
C51: Resultado participación minoritaria | D51: Nota 31
C52: Impuesto a la renta | D52: Nota 32
C53: Resultado extraordinario neto de impuesto a la renta | D53: Nota 33
C54: Resultado sobre actividades discontinuadas neto de impuesto a la renta | D54: Nota 34
C55: Utilidad/(Pérdida) neta del año | D55: Nota 35
C56: Utilidad neta por acción ordinaria | D56: Nota 35
B57: Estado de Evolución del Patrimonio Neto | D57: EVPN
B58: Estado de Flujos de Efectivo | D58: EFE
B59: Otras Notas de los Estados Financieros
C60: Activos gravados | D60: Nota 36
C61: Contingencias y compromisos | D61: Nota 37
C62: Impuesto diferido | D62: Nota 38
C63: Hechos posteriores | D63: Nota 39
C64: Saldos y transacciones con partes relacionadas | D64: Nota 40

Sheet BG
D1: =Indice!C1 -> BRICAPAR SA | E1: Indice
A7: BALANCE GENERAL
A8: =IFERROR(IF(Indice!B6="","Al dia... de mes… de año 2XX2…","Al "&DAY(Indice!B6)&" de "&VLOOKUP(MONTH(Indice!B6),Indice!S:T,2,0)&" de "&YEAR(Indice!B6)),"Al dia... de mes… de año 2XX2…") -> Al 30 de Septiembre de 2021
A9: (En miles de guaraníes)
E11: Nota | F11: =IFERROR(IF(Indice!B6="","2XX2",YEAR(Indice!B6)),"2XX2") -> 2021 | G11: =IFERROR(YEAR(Indice!B6-365),"2XX1") -> 2020
B12: ACTIVOS
B13: Activos Corrientes
C14: Efectivo y equivalente de efectivo | E14: 3 | F14: ='Nota 3'!C20 -> 630004411 | G14: ='Nota 3'!D20 -> 476781391
C15: Inversiones temporales | E15: 4 | F15: ='Nota 4'!B18 -> 0 | G15: ='Nota 4'!C18 -> 0
C16: Cuentas por cobrar comerciales | E16: 5 | F16: ='Nota 5'!C25 -> 17104911253 | G16: ='Nota 5'!D25 -> 17353937424
C17: Otros créditos | E17: 6 | F17: ='Nota 6'!B29 -> 50847646299 | G17: ='Nota 6'!C29 -> 47845928684
C18: Inventarios | E18: 7 | F18: ='Nota 7'!B16 -> 64757265137 | G18: ='Nota 7'!C16 -> 58662825988
C19: Total activos corrientes | F19: =SUM(F14:F18) -> 133339827100 | G19: =SUM(G14:G18) -> 124339473487
B20: Activos no Corrientes
C21: Otros créditos | E21: 6 | F21: ='Nota 6'!F15 -> 18445362 | G21: ='Nota 6'!G15 -> 33183725
C22: Cuentas por cobrar comerciales | E22: 5 | F22: ='Nota 5'!C52 -> 0 | G22: ='Nota 5'!D52 -> 0
C23: Inversión en asociadas | E23: 8 | F23: ='Nota 8'!B8 -> 9272000000 | G23: ='Nota 8'!C8 -> 9272000000
C24: Propiedades, planta y equipo/Bienes de uso, neto | E24: 9 | F24: ='Nota 9'!L28 -> 50130225304 | G24: ='Nota 9'!M28 -> 56999285435
C25: Activos disponibles para la venta | E25: 10 | F25: ='Nota 10'!B19 -> 0 | G25: ='Nota 10'!C19 -> 0
C26: Activos intangibles | E26: 11 | F26: ='Nota 11'!B11 -> 78527261 | G26: ='Nota 11'!C11 -> 64964675
C27: Goodwill | E27: 12 | F27: ='Nota 12'!B11 -> 0 | G27: ='Nota 12'!C11 -> 0
C28: Total activos no corrientes | F28: =SUM(F21:F27) -> 59499197927 | G28: =SUM(G21:G27) -> 66369433835
B29: Total Activos | F29: =+F19+F28 -> 192839025027 | G29: =+G19+G28 -> 190708907322
B30: PASIVOS Y PATRIMONIO NETO
B31: Pasivos corrientes | F31: -1
C32: Cuentas por pagar comerciales | E32: 13 | F32: ='Nota 13'!D14 -> 8663169383 | G32: ='Nota 13'!E14 -> 12869218919
C33: Préstamos a corto plazo | E33: 14 | F33: ='Nota 14'!E33 -> 14492411787 | G33: ='Nota 14'!K33 -> 16286357445
C34: Porción corriente de la deuda a largo plazo | E34: 15 | F34: ='Nota 15'!B15 -> 0 | G34: ='Nota 15'!C15 -> 0
C35: Remuneraciones y cargas sociales a pagar | E35: 16 | F35: ='Nota 16'!B12 -> 956807706 | G35: ='Nota 16'!C12 -> 1953818242
C36: Impuestos a pagar | E36: 17 | F36: ='Nota 17'!B12 -> 0 | G36: ='Nota 17'!C12 -> 0
C37: Provisiones | E37: 18 | F37: ='Nota 18'!B14 -> 968841520 | G37: ='Nota 18'!C14 -> 1306055048
C38: Otros pasivos corrientes | E38: 19 | F38: ='Nota 19'!B14 -> 4525874225 | G38: ='Nota 19'!C14 -> 4416225706
C39: Total Pasivos Corrientes | F39: =SUM(F32:F38) -> 2.960710462e+10 | G39: =SUM(G32:G38) -> 36831675360
B40: Pasivos no corrientes
C41: Préstamos a largo plazo | E41: 14 | F41: ='Nota 14'!E59 -> 91292712634 | G41: ='Nota 14'!K59 -> 81392763875
C42: Otros pasivos no corrientes | E42: 19 | F42: ='Nota 19'!F14 -> 20682969866 | G42: ='Nota 19'!G14 -> 22352456777
C43: Total pasivos no corrientes | F43: =SUM(F41:F42) -> 111975682500 | G43: =SUM(G41:G42) -> 103745220652
B45: Total Pasivos | F45: =+F39+F43 -> 1.415827871e+11 | G45: =+G39+G43 -> 140576896012
B46: Patrimonio Neto
C47: Capital integrado | E47: 20 | F47: ='Nota 20'!B11 -> 60000000000 | G47: ='Nota 20'!C11 -> 60000000000
C48: Reserva de revalúo | E48: 21 | F48: =' Nota 21'!B8 -> 7329141112 | G48: =' Nota 21'!C8 -> 7329141112
C49: Reserva legal | E49: 21 | F49: =' Nota 21'!B13 -> 569684723 | G49: =' Nota 21'!C13 -> 569684723
C50: Reservas estatutarias | E50: 21 | F50: =' Nota 21'!B17 -> 0 | G50: =' Nota 21'!C17 -> 0
C51: Reservas facultatitvas | E51: 21 | F51: =' Nota 21'!B21 -> 0 | G51: =' Nota 21'!C21 -> 0
C52: Diferencia transitoria por conversión | E52: 22 | F52: ='Nota 22'!B8 -> 0 | G52: ='Nota 22'!C8 -> 0
C53: Resultados acumulados | E53: 23 | F53: ='Nota 23'!B10 -> -16642587929 | G53: ='Nota 23'!C10 -> -17766814525
C54: Subtotal | F54: =SUM(F47:F53) -> 51256237906 | G54: =SUM(G47:G53) -> 50132011310
C55: Interés minoritario | E55: 24 | F55: ='Nota 24'!B8 -> 0 | G55: ='Nota 24'!C8 -> 0
B56: Total Patrimonio Neto | F56: =F54 -> 51256237906 | G56: =G54 -> 50132011310
B57: Total Pasivos y Patrimonio Neto | F57: =+F45+F56 -> 1.92839025e+11 | G57: =+G45+G56 -> 190708907322
B59: Las notas que se acompañan forman parte integrante de estos estados.

Sheet EVPN
A1: =Indice!C1 -> BRICAPAR SA | H1: Indice
F4: ESTADO DE EVOLUCIÓN DEL PATRIMONIO NETO
H5: =IFERROR(IF(Indice!B6="","Al dia... de mes… de año 2XX2…","Al "&DAY(Indice!B6)&" de "&VLOOKUP(MONTH(Indice!B6),Indice!S:T,2,0)&" de "&YEAR(Indice!B6)),"Al dia... de mes… de año 2XX2…") -> Al 30 de Septiembre de 2021
A6: (En miles de guaraníes)
C9: Aporte de los propietarios | L9: Ganancias reservadas
C10: Capital suscripto e integrado | D10: Aporte para | F10: Primas de emisión | H10: Reserva de revalúo | J10: Reserva de revalúo técnico | L10: Reserva legal | N10: Reserva facultativa | P10: Resultados acumulados | R10: Interes Minoritario | T10: Total
D11: aumento de capital | P11: Total
A14: =IFERROR(IF(Indice!B6="","Saldo al .. de de 20X1 ","Saldo al "&DAY(Indice!B6)&" de "&VLOOKUP(MONTH(Indice!B6),Indice!S:T,2,0)&" de "&YEAR(Indice!B6-365)),"Saldo al .. de de 20X1 ") -> Saldo al 30 de Septiembre de 2020 | C14: 60000000000 | F14: 0 | G14: 0 | H14: 7329141112 | J14: 0 | L14: 569684723 | N14: 0 | P14: -16811573557 | R14: 0 | T14: =+C14+H14+L14+P14 -> 51087252278
A15: Distribución de dividendos s/Acta de Asamblea General Ordinaria N°… de fecha………
A16: Revalúo de activos fijos
A17: Desafectación de la reserva de revalúo técnico
A18: Resultado del año | P18: 168985628 | T18: =+P18 -> 168985628
A20: =IFERROR(IF(Indice!B6="","Saldo al .. de de 20X2 ","Saldo al "&DAY(Indice!B6)&" de "&VLOOKUP(MONTH(Indice!B6),Indice!S:T,2,0)&" de "&YEAR(Indice!B6)),"Saldo al .. de de 20X2 ") -> Saldo al 30 de Septiembre de 2021 | C20: =C14+C15+C16+C17+C18 -> 60000000000 | D20: =SUM(D14:D18) ->  | F20: =F14+F15+F16+F17+F18 -> 0 | H20: =H14+H15+H16+H17+H18 -> 7329141112 | J20: =J14+J15+J16+J17+J18 -> 0 | L20: =L14+L15+L16+L17+L18 -> 569684723 | N20: =N14+N15+N16+N17+N18 -> 0 | P20: =P14+P15+P16+P17+P18 -> -16642587929 | R20: =R14+R15+R16+R17+R18 -> 0 | T20: =+C20+H20+L20+P20 -> 51256237906
A22: Las notas que se acompañan forman parte integrante de estos estados.

Sheet ER
A1: =Indice!C1 -> BRICAPAR SA | B1: Indice | D1: =ER!A4 -> 
A7: ESTADO DE RESULTADOS
A8: =IFERROR(IF(Indice!B6="","Al dia... de mes… de año 2XX2…","Al "&DAY(Indice!B6)&" de "&VLOOKUP(MONTH(Indice!B6),Indice!S:T,2,0)&" de "&YEAR(Indice!B6)),"Al dia... de mes… de año 2XX2…") -> Al 30 de Septiembre de 2021
A9: Comparativo con igual período del año anterior
A10: (En miles de guaraníes)
B12: Nota | C12: =IFERROR(IF(Indice!B6="","2XX2",YEAR(Indice!B6)),"2XX2") -> 2021 | D12: =IFERROR(YEAR(Indice!B6-365),"2XX1") -> 2020
A13: Ventas | B13: 25 | C13: ='Nota 25'!B26 -> 60826355777 | D13: ='Nota 25'!C26 -> 39268000952
A14: Costo de ventas | B14: 26 | C14: =-'Nota 26'!B12 -> -44982077874 | D14: =-'Nota 26'!C12 -> -28923426545
A15: Utilidad bruta | C15: =C13+C14 -> 15844277903 | D15: =D13+D14 -> 10344574407
A16: Gastos de ventas | B16: 27 | C16: =-'Nota 27'!B37 -> -3293557621 | D16: =-'Nota 27'!E37 -> -3533481978
A17: Gastos administrativos | B17: 27 | C17: =-'Nota 27'!C37 -> -3399916834 | D17: =-'Nota 27'!F37 -> -2544934251
A18: Otros ingresos y gastos operativos | B18: 28 | C18: =+'Nota 28'!B17+'Nota 28'!F16 -> 2659356963 | D18: =+'Nota 28'!C17+'Nota 28'!G16 -> -5393027428
A19: Resultado operativo | C19: =SUM(C15:C18) -> 11810160411 | D19: =SUM(D15:D18) -> -1126869250
A20: Ingresos financieros - neto | B20: 29 | C20: ='Nota 29'!B14 -> 0 | D20: ='Nota 29'!C14 -> 0
A21: Gastos financieros - neto | B21: 29 | C21: =-'Nota 29'!F14 -> -11641174783 | D21: =-'Nota 29'!G14 -> -7036415306
A22: Subtotal | C22: =SUM(C20:C21) -> -11641174783 | D22: =SUM(D20:D21) -> -7036415306
A23: Resultado de inversiones en asociadas | B23: 30 | C23: ='Nota 30'!B16 -> 0 | D23: ='Nota 30'!C16 -> 0
A24: Resultados ordinarios antes de impuesto a la renta y participación minoritaria | C24: =C19+C22 -> 168985628 | D24: =D19+D22 -> -8163284556
A25: Resultado participación minoritaria | B25: 31 | C25: ='Nota 31'!B16 -> 0 | D25: ='Nota 31'!C16 -> 0
A26: Resultado ordinario antes del impuesto a la renta
A27: Impuesto a la renta | B27: 32 | C27: ='Nota 32'!B14 -> 0 | D27: ='Nota 32'!C14 -> 0
A28: Resultado neto de actividades ordinarias | C28: =C26+C27 -> 0 | D28: =D26+D27 -> 0
A29: Resultado extraordinario neto de impuesto a la renta | B29: 33 | C29: ='Nota 32'!B14 -> 0 | D29: ='Nota 32'!C14 -> 0
A30: Resultado sobre actividades discontinuadas neto de impuesto a la renta | B30: 34 | C30: ='Nota 34'!B12 -> 0 | D30: ='Nota 34'!C12 -> 0
A31: Utilidad/(Pérdida) neta del año | C31: =C28+C29+C30 -> 0 | D31: =D28+D29+D30 -> 0
A32: Utilidad neta por acción ordinaria | B32: 35 | C32: ='Nota 35'!B10 -> 8449.2814 | D32: ='Nota 35'!C10 -> -408164.2278
A35: Las notas que se acompañan forman parte integrante de estos estados.

Sheet EFE
A1: =Indice!C1 -> BRICAPAR SA
A5: ESTADO DE FLUJOS DE EFECTIVO (Método directo)
A6: =IFERROR(IF(Indice!B6="","Al dia... de mes… de año 2XX2…","Al "&DAY(Indice!B6)&" de "&VLOOKUP(MONTH(Indice!B6),Indice!S:T,2,0)&" de "&YEAR(Indice!B6)),"Al dia... de mes… de año 2XX2…") -> Al 30 de Septiembre de 2021
A7: Comparativo con igual periodo del año anterior
A8: (En miles de guaraníes)
B11: =IFERROR(IF(Indice!B6="","2XX2",YEAR(Indice!B6)),"2XX2") -> 2021 | C11: =IFERROR(YEAR(Indice!B6-365),"2XX1") -> 2020
A13: FLUJO DE EFECTIVO DE ACTIVIDADES OPERATIVAS
A14: Cobranzas efectuadas a clientes | B14: 52038972673 | C14: 39744601657
A15: Pagos efectuados a proveedores y empleados | B15: -32659826038 | C15: -31091713576
A16: Efectivo generado por las operaciones | B16: -3279721660 | C16: -3524931993
A17: Intereses pagados
A18: Otros ingresos y (egresos) - neto
A19: Pagos de impuesto a la renta
A20: Flujo neto de efectivo de actividades operativas | B20: =SUM(B14:B18) -> 16099424975 | C20: =SUM(C14:C18) -> 5127956088
A22: FLUJO DE EFECTIVO DE ACTIVIDADES DE INVERSIÓN
A23: Adquisición de bienes de uso
A24: Adquisición de bienes Curtiembre - fideicomitida
A25: Ventas de activos fijos | B25: 0 | C25: 0
A26: Ventas de bienes de uso
A27: Intereses cobrados sobre inversiones
A28: Aquisición de inversiones | B28: -1087631773 | C28: -2769870853
A29: Flujo neto de efectivo de actividades de inversión | B29: =SUM(B23:B28) -> -1087631773 | C29: =SUM(C23:C28) -> -2769870853
A31: FLUJO DE EFECTIVO DE ACTIVIDADES DE FINANCIACIÓN
A32: (Disminución) Incremento de préstamos | B32: -13288455203 | C32: 8970517681
A33: Aportes de capital recibidos
A34: Dividendos pagados
A35: (Disminución) Incremento de intereses | B35: -2369628202 | C35: -4916650991
A36: Otras actividades de inversion
A37: Flujo neto de efectivo de actividades de financiamiento | B37: =B32+B35 -> -15658083405 | C37: =C32+C35 -> 4053866690
A39: (Disminución) Incremento neto de efectivo | B39: =+B20+B29+B37 -> -646290203 | C39: =+C20+C29+C37 -> 6411951925
A40: Efecto estimado de la diferencia de cambio sobre el saldo de efectivo | B40: 799513223 | C40: -6124823214
A41: Efectivo al principio del año | B41: =+C43 -> 476781391 | C41: 189652680
A43: Efectivo al final del periodo | B43: =+SUM(B39:B41) -> 630004411 | C43: =+SUM(C39:C41) -> 476781391
A45: Las notas que se acompañan forman parte integrante de estos estados.

Sheet Nota1
A1: =Indice!C1 -> BRICAPAR SA | I1: BG
A6: NOTAS A LOS ESTADOS FINANCIEROS CORRESPONDIENTES AL PERIODO TERMINADO | H6: =IFERROR(IF(Indice!B6="","Al dia... de mes… de año 2XX2…","Al "&DAY(Indice!B6)&" de "&VLOOKUP(MONTH(Indice!B6),Indice!S:T,2,0)&" de "&YEAR(Indice!B6)),"Al dia... de mes… de año 2XX2…") -> Al 30 de Septiembre de 2021
A7: Presentadas en forma comparativa con el periodo terminado | F7: =IFERROR("Al "&DAY(Indice!B6)&" de "&VLOOKUP(MONTH(Indice!B6),Indice!S:T,2,0)&" de "&YEAR(Indice!B6-365),"Al dia... de mes… de año 2XX1…") -> Al 30 de Septiembre de 2020
A11: NOTA 1 – DESCRIPCIÓN DE LA NATURALEZA Y DEL NEGOCIO DE LA COMPAÑÍA
A12: BRICAPAR SOCIEDAD ANÓNIMA fue constituida el 26 de diciembre de 1997, mediante Escritura Pública N° 134, en los folios N° 524 y siguientes del protocolo de Contratos Comerciales Sección A, pasada ante el Escribano Público Carlos Alberto Insfrán Ojeda. La Sociedad fue inscripta en el Registro Público de Comercio, ordenada por el Juez de Primera Instancia en lo Civil y Comercial del Sexto Turno, Dra. Valentina Núñez G., según providencia de fecha 28 de enero de 1998, anotado bajo el N° 14, Serie C, folios 111 y siguientes, Sección Contratos en fecha 15 de febrero de 1998.
A13: Sus Estatutos Sociales fueron modificados primeramente mediante Escritura Pública Nº 82, folio 399 del protocolo de Contratos Civiles, Sección A, de fecha 14 de mayo de 2002, a efectos de aumentar el capital social de la firma a Gs. 1.860.000.000 (guaraníes mil ochocientos sesenta millones). La modificación de los Estatutos fue inscripta en la Dirección General de los Registros Públicos – Registro Público de Comercio, ordenada por el Juez de Primera Instancia en lo Civil y Comercial del 2º Turno, Dr. Silvino Delvalle, según providencia de fecha 1º de agosto de 2002, anotado bajo el N° 152, Serie A, folios 1068 y siguientes, Sección Contratos en fecha 16 de setiembre de 2002.
A14: Una nueva modificación de los Estatutos Sociales fue realizada mediante Escritura Pública Nº 11, folio 32 y siguientes del protocolo de Contratos Civiles, Sección A de fecha 29 de marzo de 2004, pasada ante el Notario y Escribano Público Carlos Alberto Insfrán Ojeda, a efectos de aumentar el capital social de la firma a Gs. 24.000.000.000 (guaraníes veinticuatro mil millones). La modificación de los Estatutos Sociales fue inscripta en el Registro Público de Comercio, anotado bajo el N° 673, Serie B, folios 7580 y siguientes, Sección Contratos en fecha 16 de julio de 2004.
A15: La siguiente modificación de sus Estatutos Sociales fue realizada a través del Acta Nº 11 de Asamblea Extraordinaria de Accionistas de fecha 12 de setiembre de 2006, a efectos de adecuar los estatutos sociales a una sociedad anónima emisora y su participación en el Mercado de Valores. Protocolizado por Escritura Pública Nº66, inscripta en el Registro Público de Comercio, anotado bajo el Nº 20, Serie E, folios 169 y siguientes, Sección Contratos en fecha 04 de enero de 2007.
A16: Por Escritura Pública N° 54 del 23 de Agosto del 2017 pasada ante el escribano Carlos A. Insfrán fueron modificados los estatutos sociales y la sociedad fue convertida en Sociedad Anónima con aumento de capital a Gs. 60.000.000.000 (guaraníes sesenta mil millones), dicha escritura fue inscripta en el Registro de Personas Jurídicas y Asociaciones, con Matrícula Jurídica N° 11.184 bajo el folio N° 1, folio 1, el 06 de Octubre de 2017 y en el Registro Público de Comercio, con Matricula Comercial N° 11.421, bajo el N° 01, folio 01, el 06 de Octubre de 2017

Sheet Nota 2
A1: =Indice!C1 -> BRICAPAR SA | I1: BG
A6: NOTA 2 - RESUMEN DE LAS PRINCIPALES POLÍTICAS CONTABLES
A7: Resumen de las principales políticas contables: a modo referencial, se incluyen las siguientes revelaciones de políticas contables en estados financieros de uso general que podrá ser tenida en consideración por las sociedades emisoras para la preparación de este capítulo de los estados financieros:
A10: a. Bases de contabilización (Según NIF Bases de preparación de los Estados Financieros)
A11: Los estados financieros se han preparado siguiendo los criterios de las Normas de Información Financiera (NIF) emitidas por el Consejo de Contadores Públicos del Paraguay sobre la base de costos históricos, excepto para el caso de activos y pasivos en moneda extranjera y las propiedades, planta y equipo según se explica en los puntos c ) y k), y no reconocen en forma integral los efectos de la inflación sobre la situación patrimonial y financiera de la sociedad, sobre los resultados de sus operaciones y los flujos de efectivo, en atención a que la corrección monetaria no constituye una práctica contable obligatoria en el Paraguay.
A12: De haberse aplicado una corrección monetaria integral de los estados financieros, podrían haber surgido diferencias en la presentación de la situación patrimonial y financiera de la sociedad, en los resultados de sus operaciones y en los flujos de efectivo al ….., y por los ejercicios cerrados el, 31 de ………. de 20X2 y 20X1. Según el índice general de precios del consumo (IPC) publicado por el Banco Central del Paraguay, la inflación fue de 00,0% en el año 20X2 y 00,0% en el año 20X1. Obs: Datos a incorporar para cierre del ejercicio
A14: b. Uso de estimaciones contables
A15: La preparación de los presentes estados financieros requiere que la Gerencia de la sociedad realice estimaciones y evaluaciones que afectan el monto de los activos y pasivos registrados y contingentes, como así también los ingresos y egresos registrados en el ejercicio. Los resultados reales futuros pueden diferir de las estimaciones y evaluaciones realizadas a la fecha de preparación de los presentes estados financieros.
A17: c. Moneda extranjera
A18: Los activos y pasivos en moneda extranjera se valúan a los tipos de cambio vigentes a la fecha de cierre del ejercicio.
A19: Las diferencias de cambio originadas por fluctuaciones en los tipos de cambio producidos entre las fechas de concertación de las operaciones y su liquidación o valuación al cierre del ejercicio, son reconocidas en resultados.
C22: =IFERROR(IF(Indice!B6="","2XX2",YEAR(Indice!B6)),"2XX2") -> 2021 | G22: =IFERROR(YEAR(Indice!B6-365),"2XX1") -> 2020
B23: Indicar moneda | C23: Simbología según ISO 4217 | D23: Miles de G. | F23: Indicar moneda | G23: Simbología según ISO 4217 | H23: Miles de G.
A24: Activos | B24: GUARANÍ | C24: PYG | D24: =+BG!F29 -> 192839025027 | F24: GUARANÍ | G24: PYG | H24: =+BG!G29 -> 190708907322
A25: Pasivos | B25: GUARANÍ | C25: PYG | D25: =+BG!F45 -> 1.415827871e+11 | F25: GUARANÍ | G25: PYG | H25: =+BG!G45 -> 140576896012
A26: Posición neta | D26: =D24-D25 -> 5.125623791e+10 | H26: =H24-H25 -> 50132011310
A28: A la fecha de emisión de estos estados financieros, el tipo de cambio de la moneda extranjera USD varió Ligeramente (varió en un -0,89%-Compra, -0,87%-Venta) con respecto al vigente al 30 de setiembre 2020,
A30: d. Efectivo y equivalentes de efectivo
A31: Se considerarán dentro del concepto de efectivo los saldos en efectivo, disponibilidades en cuentas bancarias y toda inversión de muy alta liquidez, con vencimiento originalmente pactado no superior a tres meses.
A34: e. Inversiones
A35: Las inversiones temporales se valúan de acuerdo a los siguientes criterios de valuación:  Valores mobiliarios: a su valor de cotización al cierre del año/período menos los gastos estimados de venta. Ver Nota ....  Colocaciones financieras en moneda local: a su valor nominal más los intereses devengados al cierre del año/período. Ver Nota ....  Colocaciones financieras en moneda extranjera: a su valor de cotización al cierre del año/período más intereses devengados a ese momento. Ver Nota ....  Las inversiones no corrientes en sociedades donde no se ejerce el control, se valúan a su valor patrimonial proporcional. Ver Nota ....
A37: f. Previsión para cuentas de dudoso cobro/incobrables
A38: Las previsiones para cuentas de dudoso cobro se determinan al cierre de cada ejercicio y/o mensualmente sobre la base del estudio de la cartera de créditos realizado con el objeto de determinar la porción no recuperable de las cuentas a cobrar. Las previsiones para cuentas de dudoso cobro se determinan mensualmente de acuerdo con el siguiente esquema de cálculo: (Indicar política de constitución de previsiones)
A40: g. Inventarios
A41: Las existencias se valúan al menor entre su costo de adquisición o de producción y su valor neto de realización (NIF 12, párrafo 5). Para determinar el consumo (baja de inventarios) se aplicarán las fórmulas de costeo siguientes: FIFO, (Primero Entrado Primero en Salir – PEPS); PPP (Precio Promedio Ponderado); o identificación específica (NIF 12, párrafos 16 a 20).
A44: h. Activos disponibles para la venta
A45: Los activos disponibles para la venta representan bienes que fueron desafectados de la actividad productiva y se mantienen con el único objetivo de ser vendidos. Los mismos se valúan, sin amortizar, al menor entre el valor de mercado de los mismos y su costo (valor libro) al momento de su designación como disponibles para la venta.
A48: i. Previsiones para desvalorización y deterioro de inventarios
A49: Las previsiones para desvalorización y deterioro de inventarios han sido estimadas tomando como base la valorización del stock deteriorado existente al cierre del ejercicio.
A51: j. Propiedades, planta y equipo
A52: Las propiedades, planta y equipo se exponen a su costo histórico ajustado por el coeficiente de revalúo emitido por la Autoridad Tributaria, menos la correspondiente depreciación acumulada. El incremento neto por la re-expresión se acredita a la respectiva reserva patrimonial, cuyo saldo puede ser utilizado únicamente para aumentar el capital.
A53: El costo de las mejoras que extienden la vida útil de los bienes o aumentan su capacidad productiva es imputado a las cuentas respectivas del activo. Los gastos de mantenimiento son cargados a resultados.
A54: La depreciación es calculada por el método de línea recta, saldo decreciente o suma de unidades (la emisora elige uno de los tres métodos con base en el patrón esperado de beneficios económicos y lo aplica consistentemente de ejercicio a ejercicio a menos que haya cambios significativos en dicho patrón considerado -NIF 11 párrafo 43 y 48).
A55: Los efectos de los ajustes sobre Propiedades, Planta y Equipo de operaciones discontinuadas se exponen formando parte de la línea “Resultados sobre actividades discontinuadas neto de impuesto a la renta” en el Estado de Resultados.
A58: k. Intangibles
A59: Los intangibles se exponen a su costo incurrido menos las correspondientes amortizaciones acumuladas al cierre del año.
A60: Las amortizaciones son calculadas por el método que refleja el patrón de consumo de los beneficios económicos derivados de los intangibles o por el método de línea recta (se explica el método elegido) si el patrón no pudiera ser determinado de forma fiable (NIF 15, párrafo 64).
A61: Este rubro incluye costos incurridos por la sociedad relacionados con ingresos futuros.
A65: m. Reconocimiento de ingresos y egresos
A66: Los ingresos y egresos son reconocidos en función de su devengamiento.
A69: n. Impuesto a la renta
A70: El impuesto a la renta que se carga a los resultados del año se basa en la utilidad contable antes de este concepto, ajustada por las partidas que la ley incluye o excluye para la determinación de la utilidad gravable a la que se aplica la tasa legal vigente del impuesto y por el reconocimiento del cargo o el ingreso originado por la aplicación del impuesto diferido, si los hubiere.
A72: o. Restricciones a la distribución de utilidades
A73: No existen restricciones a las utilidades.

Sheet Nota 3
A1: =Indice!C1 -> BRICAPAR SA | E1: BG
A6: NOTA 3 - EFECTIVO Y EQUIVALENTE DE EFECTIVO
A7: En miles de guaranies
A8: La composición de la cuenta es la siguiente:
A10: Concepto | C10: =IFERROR(IF(Indice!B6="","2XX2",YEAR(Indice!B6)),"2XX2") -> 2021 | D10: =IFERROR(YEAR(Indice!B6-365),"2XX1") -> 2020
A12: Caja Moneda Nacional | C12: 0 | D12: 0
A13: Caja Moneda Dolares | C13: 0 | D13: 0
A14: Fondo Fijo | C14: 9016915 | D14: 244773
A15: Recaudaciones a depositar - Moneda local Guaraníes | C15: 20314673 | D15: =306760555 -> 306760555
A16: Recaudaciones a depositar - Moneda extranjera Dólares | C16: 0 | D16: 0
A17: Bancos Locales - Moneda local Guaraníes | C17: 38439446 | D17: 116900304
A18: Bancos Locales - Moneda extranjera Dólares | C18: 554731528 | D18: 45373910
A19: Tarjeta corporativa | C19: 7501849 | D19: 7501849
A20: Total | C20: =SUM($C$12:C19) -> 630004411 | D20: =SUM($D$12:D19) -> 476781391

Sheet Nota 4
A1: =Indice!C1 -> BRICAPAR SA | D1: BG
A4: NOTA 4 - INVERSIONES TEMPORALES
A6: La composición de la cuenta es la siguiente:
B7: En miles de guaranies
A8: Concepto | B8: =IFERROR(IF(Indice!B6="","2XX2",YEAR(Indice!B6)),"2XX2") -> 2021 | C8: =IFERROR(YEAR(Indice!B6-365),"2XX1") -> 2020
A9: Inversiones en Titulos del Sistema Financiero Local - Moneda Local Guaraníes
A10: Inversiones en Titulos del Sistema Financiero Local - Moneda Extranjera Dólares
A11: Inversiones en Titulos del Sistema Financiero Local - Moneda Extranjera otros
A12: Inversiones en Mercado Bursatil Local - Moneda Local Guaraníes
A13: Inversiones en Mercado Bursatil Local - Moneda Extranjera Dólares
A14: Inversiones en Mercado Bursatil Extranjera - Moneda Extranjera Dólares
A15: Inversiones en Mercado Bursatil Extranjera - Moneda Extranjera otros
A16: Otras inversiones - Moneda Local Guaraníes
A17: Otras inversiones - Moneda Extranjera Dólares
A18: Total | B18: =SUM($B$9:B17) -> 0 | C18: =SUM($C$9:C17) -> 0

Sheet Nota 5
A1: =Indice!C1 -> BRICAPAR SA | F1: BG
A3: NOTA 5 – CUENTAS POR COBRAR COMERCIALES
A4: Las cuentas a cobrar comerciales a corto plazo se integran como sigue:
C5: En miles de guaraníes
C6: =IFERROR(IF(Indice!B6="","2XX2",YEAR(Indice!B6)),"2XX2") -> 2021 | D6: =IFERROR(YEAR(Indice!B6-365),"2XX1") -> 2020 | F6: Composición de la cartera de créditos por ventas | G6: 2021-09-30
A7: Deudores por ventas locales | B7: Moneda Local Guaraníes | C7: 2772982143 | D7: 1774740570 | F7: Situación | G7: Monto | H7: % Previsiones sobre Cartera
A8: Deudores por ventas locales | B8: Moneda Extranjera Dólares | C8: 955766765 | D8: 2793638625 | F8: A Total Cartera no Vencida | G8: =+C7+C8+C11-G9 -> 1.056062529e+10 | H8: 0.01
A9: Deudores por ventas locales | B9: Moneda Extranjera otros | F9: B. Total Cartera Vencida | G9: 4104004789
A10: Deudores por ventas en el exterior | B10: Moneda Local Guaraníes | F10: Composición Cartera Vencida
A11: Deudores por ventas en el exterior | B11: Moneda Extranjera Dólares | C11: 10935881174 | D11: 12739234629 | F11: Normal | G11: =+G9-G13 -> 3324861229 | H11: 0.01
A12: Deudores por ventas en el exterior | B12: Moneda Extranjera otros | F12: En Gestión de Cobro | G12: 0 | H12: 0.05
A13: Deudores - Entidad relacionada | B13: Moneda Local Guaraníes | F13: En Gestión de Cobro Judicial | G13: 779143560 | H13: 0.2
A14: Deudores - Entidad relacionada | B14: Moneda Extranjera Dólares
A15: Deudores - Entidad relacionada | B15: Moneda Extranjera otros | F15: Total de la cartera de créditos (A+B) | G15: =G8+G9 -> 14664630082
A16: Cheques adelantados recibidos de clientes | B16: Moneda Local Guaraníes
A17: Cheques adelantados recibidos de clientes | B17: Moneda Extranjera Dólares | F17: (-) Total Previsiones | G17: =-((G8*H8)+(SUMPRODUCT(G11:G13,H11:H13))) -> -294683577.2
A18: Cheques adelantados recibidos de clientes | B18: Moneda Extranjera otros
A19: Cheques rechazados | B19: Moneda Local Guaraníes | F19: TOTAL NETO DE LA CARTERA DE CRÉDITOS | G19: =G15+G17 -> 1.43699465e+10
A20: Cheques rechazados | B20: Moneda Extranjera Dólares
A21: Otros - Documentos a cobrar | B21: Moneda Local Guaraníes | C21: 2440281171 | D21: 46323600 | F21: Observaciones
A22: Otros | B22: Moneda Extranjera Dólares | F22: Criterios de Clasificación utilizados | G22: De | H22: A
A23: Otros | B23: Moneda Extranjera otros | F23: Normal | G23: 1 | H23: 179
A24: Menos Previsiones | F24: En Gestión de Cobro | G24: 180 | H24: 200
A25: Total | C25: =+SUM($C$7:C24) -> 17104911253 | D25: =+SUM($D$7:D24) -> 17353937424 | F25: En Gestión de Cobro Judicial | G25: 201 | H25: 10000
A28: Las cuentas a cobrar comerciales a largo plazo se integran como sigue:
C29: En miles de guaraníes
C30: =IFERROR(IF(Indice!B6="","2XX2",YEAR(Indice!B6)),"2XX2") -> 2021 | D30: =IFERROR(YEAR(Indice!B6-365),"2XX1") -> 2020
A31: Deudores por ventas locales | B31: Moneda Local Guaraníes
A32: Deudores por ventas locales | B32: Moneda Extranjera Dólares
A33: Deudores por ventas locales | B33: Moneda Extranjera otros
A34: Deudores por ventas en el exterior | B34: Moneda Local Guaraníes
A35: Deudores por ventas en el exterior | B35: Moneda Extranjera Dólares
A36: Deudores por ventas en el exterior | B36: Moneda Extranjera otros
A37: Deudores - Entidad relacionada | B37: Moneda Local Guaraníes
A38: Deudores - Entidad relacionada | B38: Moneda Extranjera Dólares
A39: Deudores - Entidad relacionada | B39: Moneda Extranjera otros
A40: Cheques adelantados recibidos de clientes | B40: Moneda Local Guaraníes
A41: Cheques adelantados recibidos de clientes | B41: Moneda Extranjera Dólares
A42: Cheques adelantados recibidos de clientes | B42: Moneda Extranjera otros
A43: Deudores en gestión judicial | B43: Moneda Local Guaraníes
A44: Deudores en gestión judicial | B44: Moneda Extranjera Dólares
A45: Deudores en gestión judicial | B45: Moneda Extranjera otros
A46: Cheques rechazados | B46: Moneda Local Guaraníes
A47: Cheques rechazados | B47: Moneda Extranjera Dólares
A48: Otros | B48: Moneda Local Guaraníes
A49: Otros | B49: Moneda Extranjera Dólares
A50: Otros | B50: Moneda Extranjera otros
A51: Menos Previsiones
A52: Total | C52: =+SUM($C$31:C51) -> 0 | D52: =+SUM($D$31:D51) -> 0

Sheet Nota 6
A1: =Indice!C1 -> BRICAPAR SA | D1: BG
A4: NOTA 6 - OTROS CRÉDITOS
A5: En miles de guaranies
A6: El rubro de otros créditos se compone como sigue:
A8: Corrientes | E8: No corrientes
A10: Concepto | B10: =IFERROR(IF(Indice!B6="","2XX2",YEAR(Indice!B6)),"2XX2") -> 2021 | C10: =IFERROR(YEAR(Indice!B6-365),"2XX1") -> 2020 | E10: Concepto | F10: =IFERROR(IF(Indice!B6="","2XX2",YEAR(Indice!B6)),"2XX2") -> 2021 | G10: =IFERROR(YEAR(Indice!B6-365),"2XX1") -> 2020
A11: Anticipos a proveedores | B11: 469989777 | C11: 1459107701 | E11: Garantía de Alquiler | F11: 18445362 | G11: 33183725
A12: Gastos pagados por adelantado | B12: 0 | C12: 0 | E12: I.V.A. Crédito fiscal | F12: 0 | G12: 0
A13: Anticipo Impuesto a la Renta | B13: 212965709 | C13: 185603482 | E13: Anticipos a proveedores | F13: 0 | G13: 0
A14: Retención Impuesto a la Renta | B14: 0 | C14: 0 | E14: (nuevas cuentas a incluir)
A15: Retención Impuesto al Valor agregado | B15: 942583436 | C15: 896881537 | E15: Total | F15: =SUM(F11:F14) -> 18445362 | G15: =SUM(G11:G14) -> 33183725
A16: Impuesto al valor agregado | B16: 20248655274 | C16: 17320843878
A17: Importaciones en curso | B17: 603701447 | C17: 127827210
A18: Dividendos a cobrar | B18: 93966464 | C18: 93966464
A19: Deudores varios | B19: 55000000 | C19: 65000000
A20: Anticipo Salarios/vacaciones | B20: 41536491 | C20: 0
A21: Proyectos en ejecución | B21: 2277757879 | C21: =1471268188+1310304092 -> 2781572280
A22: Intereses a devengar | B22: 0 | C22: 0
A23: Seguros a devengar | B23: =177599712+59952464 -> 237552176 | C23: =67379673+37585819 -> 104965492
A24: Cargos diferidos | B24: 3014954390 | C24: 1753263264
A25: Gastos a recuperar Centros de producción | B25: 909130984 | C25: 722930977
A26: Bolsas vacias a reembolsar (clientes) | B26: 1100433317 | C26: 1100433317
A27: Gastos a recuperar LP | B27: 2031846673 | C27: 1907577892
A28: Costos a distribuir | B28: =18610725245-2654013-498950 -> 18607572282 | C28: =19270385947-32950167+36575081+1077595+41849367+12009858+691010-2571501-1112000 -> 19325955190
A29: Total | B29: =SUM($B$11:B28) -> 50847646299 | C29: =SUM($C$11:C28) -> 47845928684

Sheet Nota 7
A1: =Indice!C1 -> BRICAPAR SA | D1: BG
A4: NOTA 7 – INVENTARIOS
A6: Los bienes de cambio están compuestos de la siguiente manera:
B7: En miles de guaranies
A8: Concepto | B8: =IFERROR(IF(Indice!B6="","2XX2",YEAR(Indice!B6)),"2XX2") -> 2021 | C8: =IFERROR(YEAR(Indice!B6-365),"2XX1") -> 2020
A9: Mercaderías
A10: Productos terminados | B10: 1044764767 | C10: 610936381
A11: Productos en proceso | B11: 15255701475 | C11: 14910879726
A12: Materia prima | B12: 41213277551 | C12: 37160362527
A13: Insumos | B13: 7243280944 | C13: 5980647354
A14: Materia prima a recibir | B14: 240400 | C14: 0
A15: (-) Previsión para desvalorización y deterioro de inventario | B15: 0 | C15: 0
A16: Total | B16: =SUM(B9:B15) -> 64757265137 | C16: =SUM(C9:C15) -> 58662825988

Sheet Nota 8
A1: =Indice!C1 -> BRICAPAR SA | D1: BG
A4: Nota 8 - INVERSIONES EN ASOCIADAS
A5: En miles de guaraníes
A6: Las inversiones en sociedades donde no se ejerce control se describen a continuación
A7: Periodo | B7: =IFERROR(IF(Indice!B6="","2XX2",YEAR(Indice!B6)),"2XX2") -> 2021 | C7: =IFERROR(YEAR(Indice!B6-365),"2XX1") -> 2020
A8: Total Inversión | B8: =SUM($I$13:I18) -> 9272000000 | C8: 9272000000 | D8: <-- Indicar Monto
A10: a) Datos sobre la sociedad: | G10: a) Datos sobre la inversión:
D11: =IFERROR(IF(Indice!B6="","2XX2",YEAR(Indice!B6)),"2XX2") -> 2021
A12: Nombre de Sociedad | B12: RUC | C12: Cantidad de acciones | D12: Total Patrimonio neto | E12: Total del resultado | G12: Cantidad de acciones | H12: Participación sobre los votos (%) | I12: Total Inversión (miles de Gs) | J12: Participación sobre el Patrimonio Neto (%) | K12: Total valuación patrimonial proporcional | L12: Resultado sobre inversiones
A13: Transglobal | B13: 80035540 | C13: 335 | D13: 2272365033 | E13: -103853723 | G13: 100 | H13: 30 | I13: 620000000 | J13: 0.3 | K13: =J13*D13 -> 681709509.9 | L13: =J13*E13 -> -31156116.9
A14: Loma Puku | B14: 80044780 | C14: 8500 | D14: 515868739.8 | E14: 0 | G14: 8500 | H14: 100 | I14: 7527000000 | J14: 1 | K14: =J14*D14 -> 515868739.8 | L14: =J14*E14 -> 0
A15: Megapack | B15: 80059955 | C15: 0 | D15: 28846013935 | E15: 348081334 | G15: 0 | H15: 0.025 | I15: 1125000000 | J15: 0.025 | K15: 721150348.4 | L15: 8702033.35
K16: 0 | L16: 0
K17: 0 | L17: 0
K18: 0 | L18: 0

Sheet Nota 9
A1: =Indice!C1 -> BRICAPAR SA | L1: BG
A5: Obs.:
A6: Incluir aclaraciones en los siguientes casos:
A7: 1. Cuando los bienes de uso tienen alguna restricción sobre su utilización, como por ejemplo cuando están garantizando obligaciones. En su caso también hacer referencia a la nota correspondiente.
A8: 2. Cuando exista alguna previsión por desvalorización (“deterioro”), detallando la evolución de la misma en el transcurso del año.
A9: 3. Si se están capitalizando intereses al costo de bienes de uso. En su caso deberá aclararse la tasa utilizada para la capitalización.
A10: Ver adicionalmente Norma de Información Financiera N° 11 Propiedades, planta y equipo
A12: NOTA 9 - PROPIEDADES, PLANTA Y EQUIPO - NETO
A13: En miles de guaraníes | J13: -1
B15: Costo histórico revaluado al inicio del año | C15: Adquisiciones | D15: Bajas | E15: Revalúo del año | F15: Valor de origen revaluado al final del año | G15: Depreciación acumulada revaluada al inicio del año | H15: Depreciación del año | I15: Bajas de depreciaciones acumuladas | J15: Revalúo depreciación acumulada del año | K15: Depreciación acumulada revaluada al final del año | L15: Valor neto contable
L16: =IFERROR(IF(Indice!B6="","2XX2",YEAR(Indice!B6)),"2XX2") -> 2021 | M16: =IFERROR(YEAR(Indice!B6-365),"2XX1") -> 2020
A17: Edificios e Instalaciones | B17: 13923545172 | C17: 164093228 | D17: 0 | E17: 0 | F17: =SUM(B17:E17) -> 14087638400 | G17: 12689600581 | H17: 568638171 | I17: 0 | J17: 0 | K17: =+G17+H17+I17 -> 13258238752 | L17: =+F17-H17 -> 13519000229 | M17: 15552383389
A18: Rodados | B18: 800050615 | C18: 318645411 | D18: 0 | E18: 0 | F18: =SUM(B18:E18) -> 1118696026 | G18: 1577567847 | H18: 135761436 | I18: 0 | J18: 0 | K18: =+G18+H18+I18 -> 1713329283 | L18: =+F18-H18 -> 982934590 | M18: 845330245
A19: Equipos de computación | B19: 90350553 | C19: 43602727 | D19: 0 | E19: 0 | F19: 133953280 | G19: 164616866 | H19: 5131836 | I19: 0 | J19: 0 | K19: 169748702 | L19: 128821444 | M19: 85420962
A20: Muebles y útiles | B20: 164692206 | C20: 18192101 | D20: 0 | E20: 0 | F20: 182884307 | G20: 901029800 | H20: 37755549 | I20: 0 | J20: 0 | K20: 938785349 | L20: 145128758 | M20: 165320762
A21: Equipos de comunicación | B21: 15448223 | D21: 0 | E21: 0 | F21: 15448223 | G21: 31203054 | H21: 2268180 | I21: 0 | J21: 0 | K21: 33471234 | L21: 13180043 | M21: 24392027
A22: Maquinarias y herramientas | B22: 4304790458 | C22: 24539986 | D22: 0 | E22: 0 | F22: 4329330444 | G22: 20255089621 | H22: 415179666 | I22: 0 | J22: 0 | K22: 20670269287 | L22: 3914150778 | M22: 4981164501
A23: Obras en curso | B23: 0 | D23: 0 | E23: 0 | F23: 0 | G23: 0 | H23: 0 | I23: 0 | J23: 0 | K23: 0 | L23: 0 | M23: 0
A24: Terrenos | B24: 3390342145 | D24: 0 | E24: 0 | F24: 3390342145 | G24: 0 | H24: 0 | I24: 0 | J24: 0 | K24: 0 | L24: 3390342145 | M24: 7031159720
A25: Mejoras en predio ajeno | B25: 257054527 | D25: 0 | E25: 0 | F25: 257054527 | G25: 2692813483 | H25: 240971409 | I25: 0 | J25: 0 | K25: 2933784892 | L25: 16083118 | M25: 337378333
A26: Otros activos | B26: =325262632+7000 -> 325269632 | C26: 113041010 | D26: 0 | E26: 0 | F26: 438310642 | G26: 2742893908 | H26: 66616443 | I26: 0 | J26: 0 | K26: 2809510351 | L26: 371694199 | M26: 327845496
A27: Inmueble (fideicomiso) | B27: 27648890000 | D27: 0 | E27: 0 | F27: =SUM(B27:E27) -> 27648890000 | G27: 0 | H27: 0 | I27: 0 | J27: 0 | K27: 0 | L27: 27648890000 | M27: 27648890000
A28: Totales | B28: =SUM(B17:B27) -> 50920433531 | C28: 682114463 | D28: 0 | E28: 0 | F28: 51602547994 | G28: 41054815160 | H28: 1472322690 | I28: 0 | J28: 0 | K28: 42527137850 | L28: 50130225304 | M28: 56999285435

Sheet Nota 10
A1: =Indice!C1 -> BRICAPAR SA | C1: BG
B3: NO APLICABLE
A4: NOTA 10 – ACTIVOS DISPONIBLES PARA LA VENTA
B5: En miles de guaranies
B6: =IFERROR(IF(Indice!B6="","2XX2",YEAR(Indice!B6)),"2XX2") -> 2021 | C6: =IFERROR(YEAR(Indice!B6-365),"2XX1") -> 2020
A7: Propiedad, planta y equipo
A8: (Detallar bienes de uso)
A9: Total | B9: =B8 -> 0 | C9: =C8 -> 0
A11: Activos intangibles
A12: (Detallar activos intangibles)
A13: Total | B13: =B12 -> 0 | C13: =C12 -> 0
A15: Inversiones
A16: (Detallar Inversiones
A17: Total | B17: =B16 -> 0 | C17: =C16 -> 0
A19: Total general | B19: =B9+B13+B17 -> 0 | C19: =C9+C13+C17 -> 0

Sheet Nota 11
A1: =Indice!C1 -> BRICAPAR SA | F1: BG
A4: NOTA 11 – ACTIVOS INTANGIBLES
B5: En miles de guaranies
A6: Activos intangibles | B6: =IFERROR(IF(Indice!B6="","2XX2",YEAR(Indice!B6)),"2XX2") -> 2021 | C6: =IFERROR(YEAR(Indice!B6-365),"2XX1") -> 2020
A7: Registro de marcas | B7: 5380000 | C7: 5380000
A8: Licencias | B8: 149485158 | C8: 112246803
A9: Menos amortización acumulada | B9: -76337897 | C9: -52662128
A11: Total general | B11: =SUM(B7:B10) -> 78527261 | C11: =SUM(C7:C10) -> 64964675

Sheet Nota 12
A1: =Indice!C1 -> BRICAPAR SA | E1: BG
C3: NO APLICABLE
A5: NOTA 12 – GOODWILL
B6: En miles de guaranies
A7: Goodwill | B7: =IFERROR(IF(Indice!B6="","2XX2",YEAR(Indice!B6)),"2XX2") -> 2021 | C7: =IFERROR(YEAR(Indice!B6-365),"2XX1") -> 2020
A11: Total general | B11: =SUM(B8:B10) -> 0 | C11: =SUM(C8:C10) -> 0

Sheet Nota 13
A1: =Indice!C1 -> BRICAPAR SA | C1: BG
A4: NOTA 13 – CUENTAS POR PAGAR COMERCIALES
A5: En miles de guaranies
A6: Las cuentas por pagar comerciales se componen como sigue:
A8: Corrientes | B8: Simbología según ISO 4217 | C8: Indicación de Moneda | D8: =IFERROR(IF(Indice!B6="","2XX2",YEAR(Indice!B6)),"2XX2") -> 2021 | E8: =IFERROR(YEAR(Indice!B6-365),"2XX1") -> 2020
A9: Proveedores - Entidades Relacionadas | B9: USD | C9: Dólar estadounidense
A10: Otros proveedores del exterior | B10: USD | C10: Dólar estadounidense | D10: 217840450 | E10: 372818752
A11: Proveedores locales | B11: PYG | C11: Guaraní | D11: 4602061287 | E11: 4349950895
A12: Proveedores locales | B12: USD | C12: Dólar estadounidense | D12: 3632382139 | E12: 7856486224
A13: Anticipo de clientes | B13: USD | C13: Dólar estadounidense | D13: 210885507 | E13: 289963048
A14: Total cuentas a pagar por comerciales | D14: =SUM($D$9:D13) -> 8663169383 | E14: =SUM($E$9:E13) -> 12869218919
A18: No Corrientes | B18: Simbología según ISO 4217 | C18: Indicación de Moneda | D18: =IFERROR(YEAR(Indice!B6),"2XX2") -> 2021 | E18: =IFERROR(YEAR(Indice!B6-365),"2XX1") -> 2020
A19: Proveedores - Entidades Relacionadas | C19: =IFERROR(VLOOKUP(B19,'Base de Monedas'!A:B,2,0),"") -> 
A20: Otros proveedores del exterior | C20: =IFERROR(VLOOKUP(B20,'Base de Monedas'!A:B,2,0),"") -> 
A21: Proveedores locales | C21: =IFERROR(VLOOKUP(B21,'Base de Monedas'!A:B,2,0),"") -> 
A22: (nuevas cuentas a incluir) | C22: =IFERROR(VLOOKUP(B22,'Base de Monedas'!A:B,2,0),"") -> 
A23: Total cuentas a pagar por comerciales | D23: =SUM($D$19:D21) -> 0 | E23: =SUM($E$19:E21) -> 0

Sheet Nota 14
A1: =Indice!C1 -> BRICAPAR SA | E1: BG | L1: BG
A4: NOTA 14 – PRESTAMOS A CORTO Y LARGO PLAZO
A6: (a) Equivalentes al tipo de cambio referencial de la fecha de presentacion
A7: (b) Obligaciones garantizadas por valor de guaraníes………..
A9: Corrientes
D10: =IFERROR(IF(Indice!B6="","2XX2",YEAR(Indice!B6)),"2XX2") -> 2021 | J10: =IFERROR(YEAR(Indice!B6-365),"2XX1") -> 2020
A11: Préstamos de Entidades Locales | B11: Vencimiento | C11: Símbolo de Moneda | D11: Moneda | E11: Importe (miles de Gs) | F11: Tipo de Garantía | H11: Vencimiento | I11: Símbolo de Moneda | J11: Moneda | K11: Importe (miles de Gs) | L11: Tipo de Garantía
A12: BANCO FAMILIAR | C12: USD | D12: Dólar estadounidense | E12: 4004512106 | F12: Sin garantia | I12: USD | J12: Dólar estadounidense | K12: 5660847015 | L12: Sin garantia
A13: BANCO GNB | C13: USD | D13: Dólar estadounidense | E13: 3991967260 | F13: Sin garantia | I13: USD | J13: Dólar estadounidense | K13: 3844694108 | L13: Sin garantia
A14: BANCO ITAU | C14: USD | D14: Dólar estadounidense | E14: 134189071 | F14: Sin garantia | I14: USD | J14: Dólar estadounidense | K14: 2090584661 | L14: Sin garantia
A15: SOBREGIROS BANCARIOS | C15: USD | D15: Dólar estadounidense | E15: =694056794+593470+601055 -> 695251319 | F15: Sin garantia | I15: USD | J15: Dólar estadounidense | K15: =644979966+600434+162322535 -> 807902935 | L15: Sin garantia
A16: SOBREGIROS BANCARIOS | C16: PYG | D16: Guaraní | E16: =378180+786627710+893328953+70691959 -> 1751026802 | I16: PYG | J16: Guaraní | K16: =700770527+3049330+1859357558 -> 2563177415
A17: CHEQUES DIFERIDOS | C17: PYG | D17: Guaraní | E17: =786494166+1594682279 -> 2381176445 | I17: PYG | J17: Guaraní | K17: =11620400+972650794 -> 984271194
A18: CHEQUES DIFERIDOS | C18: USD | D18: Dólar estadounidense | E18: 1418284757 | I18: USD | J18: Dólar estadounidense | K18: 401770580
A19: Deudas bursátiles | D19: =IFERROR(VLOOKUP(C19,'Base de Monedas'!A:B,2,0),"") ->  | J19: =IFERROR(VLOOKUP(I19,'Base de Monedas'!A:B,2,0),"") -> 
A20: (Incluir programas de forma individual) | D20: =IFERROR(VLOOKUP(C20,'Base de Monedas'!A:B,2,0),"") ->  | J20: =IFERROR(VLOOKUP(I20,'Base de Monedas'!A:B,2,0),"") -> 
A21: Préstamos de Entidades en el Exterior | D21: =IFERROR(VLOOKUP(C21,'Base de Monedas'!A:B,2,0),"") ->  | J21: =IFERROR(VLOOKUP(I21,'Base de Monedas'!A:B,2,0),"") -> 
A22: Nombre de la entidad financiera | D22: =IFERROR(VLOOKUP(C22,'Base de Monedas'!A:B,2,0),"") ->  | J22: =IFERROR(VLOOKUP(I22,'Base de Monedas'!A:B,2,0),"") -> 
A23: Nombre de la entidad financiera | D23: =IFERROR(VLOOKUP(C23,'Base de Monedas'!A:B,2,0),"") ->  | J23: =IFERROR(VLOOKUP(I23,'Base de Monedas'!A:B,2,0),"") -> 
A24: (incluir otras entidades) | D24: =IFERROR(VLOOKUP(C24,'Base de Monedas'!A:B,2,0),"") ->  | J24: =IFERROR(VLOOKUP(I24,'Base de Monedas'!A:B,2,0),"") -> 
A25: Deudas bursátiles | D25: =IFERROR(VLOOKUP(C25,'Base de Monedas'!A:B,2,0),"") ->  | J25: =IFERROR(VLOOKUP(I25,'Base de Monedas'!A:B,2,0),"") -> 
A26: (Incluir programas de forma individual) | D26: =IFERROR(VLOOKUP(C26,'Base de Monedas'!A:B,2,0),"") ->  | J26: =IFERROR(VLOOKUP(I26,'Base de Monedas'!A:B,2,0),"") -> 
A27: Intereses préstamos entidades financieras a pagar | D27: =IFERROR(VLOOKUP(C27,'Base de Monedas'!A:B,2,0),"") ->  | J27: =IFERROR(VLOOKUP(I27,'Base de Monedas'!A:B,2,0),"") -> 
A28: Intereses a pagar | C28: USD | D28: =IFERROR(VLOOKUP(C28,'Base de Monedas'!A:B,2,0),"") -> Dólar estadounidense | E28: =179951372+511390471+1632735 -> 692974578 | I28: USD | J28: Dólar estadounidense | K28: =263457973+963882095+126421955 -> 1353762023
A29: (-) Intereses a Devengar | E29: -576970551 | K29: -1420652486
A30: Intereses deudas bursátiles a pagar | D30: =IFERROR(VLOOKUP(C30,'Base de Monedas'!A:B,2,0),"") -> 
A31: Intereses a pagar | D31: =IFERROR(VLOOKUP(C31,'Base de Monedas'!A:B,2,0),"") -> 
A32: (-) Intereses a Devengar | D32: =IFERROR(VLOOKUP(C32,'Base de Monedas'!A:B,2,0),"") -> 
A33: Total | D33: =IFERROR(VLOOKUP(C33,'Base de Monedas'!A:B,2,0),"") ->  | E33: =SUM($E$12:E32) -> 14492411787 | K33: =SUM($K$12:K32) -> 16286357445
A36: No Corrientes
B37: 20X2 | D37: =IFERROR(YEAR(Indice!B6),"2XX2") -> 2021 | J37: =IFERROR(YEAR(Indice!B6-365),"2XX1") -> 2020
A38: Préstamos de Entidades Locales | B38: Vencimiento | C38: Símbolo de Moneda | D38: Moneda | E38: Importe (miles de Gs) | F38: Tipo de garantía | H38: Vencimiento | I38: Símbolo de Moneda | J38: Moneda | K38: Importe (miles de Gs) | L38: Tipo de Garantía
A39: BASA | C39: USD | D39: Dólar estadounidense | E39: 22078135926 | F39: Sin garantia | I39: USD | J39: Dólar estadounidense | K39: 18237823150 | L39: Sin garantia
A40: BANCO CONTINENTAL | C40: USD | D40: Dólar estadounidense | E40: 11499421900 | F40: Sin garantia | I40: USD | J40: Dólar estadounidense | K40: 11279384098 | L40: Sin garantia
A41: SUDAMERIS | C41: USD | D41: Dólar estadounidense | E41: 17715459114 | F41: Sin garantia | I41: USD | J41: Dólar estadounidense | K41: 18188668896 | L41: Sin garantia
A42: FIDEICOMISO - BRICAPAR/CONTINENTAL | C42: USD | D42: Dólar estadounidense | E42: 27605453400 | F42: Inmuebles | I42: USD | J42: Dólar estadounidense | K42: 29085756000 | L42: Inmuebles
A43: PRESTAMOS FINANCIERAS | C43: PYG | D43: Guaraní | E43: 5956828313 | F43: Sin garantia | I43: PYG | J43: Guaraní | K43: 5234450575 | L43: Sin garantia
A44: PRESTAMOS FINANCIERAS | C44: USD | D44: Dólar estadounidense | E44: 7694106598 | F44: Sin garantia | I44: USD | J44: Dólar estadounidense | K44: 2262382500 | L44: Sin garantia
A45: Deudas bursátiles | D45: =IFERROR(VLOOKUP(C45,'Base de Monedas'!A:B,2,0),"") ->  | J45: =IFERROR(VLOOKUP(I45,'Base de Monedas'!A:B,2,0),"") -> 
A46: (Incluir programas de forma individual) | D46: =IFERROR(VLOOKUP(C46,'Base de Monedas'!A:B,2,0),"") ->  | J46: =IFERROR(VLOOKUP(I46,'Base de Monedas'!A:B,2,0),"") -> 
A47: Préstamos de Entidades en el Exterior | D47: =IFERROR(VLOOKUP(C47,'Base de Monedas'!A:B,2,0),"") ->  | J47: =IFERROR(VLOOKUP(I47,'Base de Monedas'!A:B,2,0),"") -> 
A48: Nombre de la entidad financiera | D48: =IFERROR(VLOOKUP(C48,'Base de Monedas'!A:B,2,0),"") ->  | J48: =IFERROR(VLOOKUP(I48,'Base de Monedas'!A:B,2,0),"") -> 
A49: Nombre de la entidad financiera | D49: =IFERROR(VLOOKUP(C49,'Base de Monedas'!A:B,2,0),"") ->  | J49: =IFERROR(VLOOKUP(I49,'Base de Monedas'!A:B,2,0),"") -> 
A50: (incluir otras entidades) | D50: =IFERROR(VLOOKUP(C50,'Base de Monedas'!A:B,2,0),"") ->  | J50: =IFERROR(VLOOKUP(I50,'Base de Monedas'!A:B,2,0),"") -> 
A51: Deudas bursátiles | D51: =IFERROR(VLOOKUP(C51,'Base de Monedas'!A:B,2,0),"") ->  | J51: =IFERROR(VLOOKUP(I51,'Base de Monedas'!A:B,2,0),"") -> 
A52: (Incluir programas de forma individual) | D52: =IFERROR(VLOOKUP(C52,'Base de Monedas'!A:B,2,0),"") ->  | J52: =IFERROR(VLOOKUP(I52,'Base de Monedas'!A:B,2,0),"") -> 
A53: Intereses préstamos entidades financieras a pagar
A54: Intereses a pagar | E54: =4030775754+1001348732+1604607813+637275914+488223618+9667709357 -> 17429941188 | K54: =5782093867+1700079124+2796985553+867669272+44874034+12334830686 -> 23526532536
A55: (-) Intereses a Devengar | D55: =IFERROR(VLOOKUP(C55,'Base de Monedas'!A:B,2,0),"") ->  | E55: -18686633805 | K55: -26422233880
A56: Intereses deudas bursátiles a pagar | D56: =IFERROR(VLOOKUP(C56,'Base de Monedas'!A:B,2,0),"") ->  | J56: =IFERROR(VLOOKUP(I56,'Base de Monedas'!A:B,2,0),"") -> 
A57: Intereses a pagar | D57: =IFERROR(VLOOKUP(C57,'Base de Monedas'!A:B,2,0),"") ->  | J57: =IFERROR(VLOOKUP(I57,'Base de Monedas'!A:B,2,0),"") -> 
A58: (-) Intereses a Devengar | D58: =IFERROR(VLOOKUP(C58,'Base de Monedas'!A:B,2,0),"") -> 
A59: Total | D59: =IFERROR(VLOOKUP(C59,'Base de Monedas'!A:B,2,0),"") ->  | E59: =SUM($E$39:E58) -> 91292712634 | J59: =IFERROR(VLOOKUP(I59,'Base de Monedas'!A:B,2,0),"") ->  | K59: =SUM($K$39:K58) -> 81392763875
J60: =IFERROR(VLOOKUP(I60,'Base de Monedas'!H:I,2,0),"") -> 

Sheet Nota 15
A1: =Indice!C1 -> BRICAPAR SA | D1: BG
A5: NOTA 15 – PORCION CORRIENTE DE LA DEUDA A LARGO PLAZO
B7: En miles de guaranies
A8: Porción corriente de la deuda a largo plazo | B8: =IFERROR(IF(Indice!B6="","2XX2",YEAR(Indice!B6)),"2XX2") -> 2021 | C8: =IFERROR(YEAR(Indice!B6-365),"2XX1") -> 2020
A9: Cuentas por pagar comerciales
A10: Préstamos bancarios
A11: Bonos bursátiles
A12: Intereses bancarios a pagar
A13: Intereses bursatiles a pagar
A14: (nuevas cuentas a incluir)
A15: Total general | B15: =SUM($B$9:B14) -> 0 | C15: =SUM($C$9:C14) -> 0

Sheet Nota 16
A1: =Indice!C1 -> BRICAPAR SA | F1: BG
A4: NOTA 16 – REMUNERACIONES Y CARGAS SOCIALES A PAGAR
B6: En miles de guaranies
A7: Remuneraciones y cargas sociales a pagar | B7: =IFERROR(IF(Indice!B6="","2XX2",YEAR(Indice!B6)),"2XX2") -> 2021 | C7: =IFERROR(YEAR(Indice!B6-365),"2XX1") -> 2020
A8: Sueldo y otras remuneraciones a pagar | B8: 297616745 | C8: 669938000
A9: Aportes y retenciones a pagar | B9: 145295867 | C9: 884443727
A10: Remuneraciones al personal superior a pagar | B10: 0 | C10: 0
A11: Aguinaldo a pagar | B11: =522759928-8864834 -> 513895094 | C11: 399436515
A12: Total | B12: =SUM($B$8:B11) -> 956807706 | C12: =SUM($C$8:C11) -> 1953818242

Sheet Nota 17
A1: =Indice!C1 -> BRICAPAR SA | G1: BG
A5: NOTA 17 – IMPUESTOS A PAGAR
B7: En miles de guaranies
A8: Impuestos a pagar | B8: =IFERROR(IF(Indice!B6="","2XX2",YEAR(Indice!B6)),"2XX2") -> 2021 | C8: =IFERROR(YEAR(Indice!B6-365),"2XX1") -> 2020
A9: Impuesto a la renta a pagar | B9: 0 | C9: 0
A10: Otros impuestos a pagar | B10: 0 | C10: 0
A11: (Indicar otros impuestos) | B11: 0 | C11: 0
A12: Total | B12: =SUM($B$9:B11) -> 0 | C12: =SUM($C$9:C11) -> 0

Sheet Nota 18
A1: =Indice!C1 -> BRICAPAR SA | D1: BG
A4: NOTA 18 - PROVISIONES
B6: En miles de guaranies
A7: Provisiones | B7: =IFERROR(IF(Indice!B6="","2XX2",YEAR(Indice!B6)),"2XX2") -> 2021 | C7: =IFERROR(YEAR(Indice!B6-365),"2XX1") -> 2020
A9: Alquileres a Pagar
A10: Servicios Basicos a Pagar
A11: Honorarios Profesionales a Pagar
A12: Provisiones proveedores GS | B12: 723114134 | C12: 820972353
A13: Provisiones proveedores USD | B13: 245727386 | C13: 485082695
A14: Total | B14: =SUM($B$9:B13) -> 968841520 | C14: =SUM($C$9:C13) -> 1306055048

Sheet Nota 19
A1: =Indice!C1 -> BRICAPAR SA | D1: BG
A3: NOTA 19 – OTROS PASIVOS CORRIENTES y NO CORRIENTES
A4: En miles de guaranies
A6: Corrientes | B6: =IFERROR(IF(Indice!B6="","2XX2",YEAR(Indice!B6)),"2XX2") -> 2021 | C6: =IFERROR(YEAR(Indice!B6-365),"2XX1") -> 2020 | E6: No Corrientes | F6: =IFERROR(IF(Indice!B6="","2XX2",YEAR(Indice!B6)),"2XX2") -> 2021 | G6: =IFERROR(YEAR(Indice!B6-365),"2XX1") -> 2020
A7: Retencion de IVA a pagar | B7: 179594986 | C7: 278172094 | E7: Retencion de IVA a pagar | F7: 0 | G7: 0
A8: Retencion Impuesto a la renta a Pagar | B8: 0 | C8: 0 | E8: Retencion Impuesto a la renta a Pagar | F8: 0 | G8: 0
A9: Impuestos diferidos | B9: 0 | C9: 0 | E9: Impuestos diferidos | F9: 0 | G9: 0
A10: Otros ingresos diferidos (detallar cuenta) | B10: 0 | C10: 0 | E10: Otros ingresos diferidos | F10: 0 | G10: 0
A11: Otros Pasivos con Entidades relacionadas | B11: 0 | C11: 0 | E11: Otros Pasivos con Entidades relacionadas | F11: 0 | G11: 0
A12: Previsiones para contingencias/Indemnizaciones y despidos | B12: 0 | C12: 0 | E12: Previsiones para contingencias/Indemnizaciones y despidos | F12: 0 | G12: 0
A13: Otras cuentas a pagar* | B13: =+B24 -> 4346279239 | C13: =+C24 -> 4138053612 | E13: Prestamos accionistas | F13: =21240286200+1716519546-2273835880 -> 20682969866 | G13: =20706968000+1734305835-231613597+142796539 -> 22352456777
A14: Total | B14: =SUM(B7:B13) -> 4525874225 | C14: =SUM(C7:C13) -> 4416225706 | E14: Total | F14: =SUM(F8:F13) -> 20682969866 | G14: =SUM(G8:G13) -> 22352456777
A17: Otras cuentas a pagar* | B17: 2021 | C17: 2020
A18: JGL - compra de tractor | B18: 385360637 | C18: 293433137
A19: Contratistas centro de producción (saldo) | B19: 2262079 | C19: 2262079
A20: Prestamos de terceros - Jimenez Gaona y Lima (JGL) | B20: 3291644444 | C20: 3173025078
A21: Asociación de empleados | B21: 65833050 | C21: 103851791
A22: Prestamo accionista - negociacion de cheque | B22: =203385920+389067361 -> 592453281 | C22: 556267645
A23: Tarjeta Corporativa | B23: 8725748 | C23: 9213882
B24: =SUM(B18:B23) -> 4346279239 | C24: =SUM(C18:C23) -> 4138053612

Sheet Nota 21
A1: =Indice!C1 -> BRICAPAR SA | F1: BG
A4: NOTA 21 – RESERVAS
B6: En miles de guaranies
B7: =IFERROR(IF(Indice!B6="","2XX2",YEAR(Indice!B6)),"2XX2") -> 2021 | C7: =IFERROR(YEAR(Indice!B6-365),"2XX1") -> 2020
A8: a Reserva de revalúo | B8: 7329141112 | C8: 7329141112
A13: b Reserva legal | B13: 569684723 | C13: 569684723
A17: c Reservas estatutarias
A21: d Reservas facultativas | B21: =+SUM($B$22:B27) -> 0 | C21: =+SUM($C$22:C27) -> 0
A22: d.1. (nuevas cuentas a incluir)
A23: d.2. (nuevas cuentas a incluir)

Sheet Nota 20
A1: =Indice!C1 -> BRICAPAR SA | D1: BG
A4: NOTA 20 – CAPITAL INTEGRADO
A6: Fecha | B6: =IFERROR(IF(Indice!B6="","2XX2",YEAR(Indice!B6)),"2XX2") -> 2021 | C6: =IFERROR(YEAR(Indice!B6-365),"2XX1") -> 2020
A7: Monto Capital Social
A8: Monto Capital Integrado | B8: 60000000000 | C8: 60000000000
A9: Cantidad de Acciones | B9: 20000 | C9: 20000
A10: Valor Nominal de Acciones | B10: 3000000 | C10: 3000000
A11: Total | B11: =+B8 -> 60000000000 | C11: =+C8 -> 60000000000

Sheet Nota 22
A1: =Indice!C1 -> BRICAPAR SA | F1: BG
C3: NO APLICABLE
A4: NOTA 21 – DIFERENCIA TRANSITORIA POR CONVERSION
B6: En miles de guaranies
B7: =IFERROR(IF(Indice!B6="","2XX2",YEAR(Indice!B6)),"2XX2") -> 2021 | C7: =+IFERROR(YEAR(Indice!B6-365),"2XX1") -> 2020
A8: Diferencia transitoria por conversión

Sheet Nota 23
A1: =Indice!C1 -> BRICAPAR SA | F1: BG
A4: NOTA 23 – RESULTADOS ACUMULADOS
B6: En miles de guaranies
B7: =IFERROR(IF(Indice!B6="","2XX2",YEAR(Indice!B6)),"2XX2") -> 2021 | C7: =+IFERROR(YEAR(Indice!B6-365),"2XX1") -> 2020
A8: Resultado de ejercicios anteriores | B8: -16811573557 | C8: -9603529969
A9: Resultado del ejercicio actual | B9: 168985628 | C9: -8163284556
A10: Totales | B10: =SUM($B$8:B9) -> -16642587929 | C10: =SUM($C$8:C9) -> -17766814525

Sheet Nota 24
A1: =Indice!C1 -> BRICAPAR SA | F1: BG
B3: NO APLICABLE
A4: NOTA 24 – INTERES MINORITARIO
B6: En miles de guaranies
B7: =IFERROR(IF(Indice!B6="","2XX2",YEAR(Indice!B6)),"2XX2") -> 2021 | C7: =+IFERROR(YEAR(Indice!B6-365),"2XX1") -> 2020
A8: Interes Minoritario

Sheet Nota 25
A1: =Indice!C1 -> BRICAPAR SA | E1: ER
A5: NOTA 25 – VENTAS
B8: En miles de guaranies
B9: =IFERROR(IF(Indice!B6="","2XX2",YEAR(Indice!B6)),"2XX2") -> 2021 | C9: =+IFERROR(YEAR(Indice!B6-365),"2XX1") -> 2020
A10: Ventas
A11: Venta de carbón, briquetas y aserrín
A12: Local
A13: Contado
A14: Crédito | B14: =1654402440+489136459+21759545+378434360+1436704546 -> 3980437350 | C14: =1275550022+259922008+1261679917+17336727 -> 2814488674
A15: Exterior
A16: Contado
A17: Crédito | B17: =32833832056+268090020+23743996351 -> 56845918427 | C17: =23358523609+13094988669 -> 36453512278
A18: Ventas linea de negocio 2
A19: Local
A20: Contado
A21: Crédito
A22: Exterior
A23: Contado
A24: Crédito
A25: (nuevas lineas de negocio a incluir)
A26: Total | B26: =SUM($B$11:B24) -> 60826355777 | C26: =SUM($C$11:C24) -> 39268000952

Sheet Nota 26
A1: =Indice!C1 -> BRICAPAR SA | E1: ER
A5: NOTA 26 - COSTO DE VENTAS
B8: Miles de guaraníes
A9: Costo de ventas | B9: =IFERROR(IF(Indice!B6="","2XX2",YEAR(Indice!B6)),"2XX2") -> 2021 | C9: =+IFERROR(YEAR(Indice!B6-365),"2XX1") -> 2020
A10: Costo de venta de carbón, briquetas y aserrín
A11: Costo de Ventas (metodo de costeo - PPP) | B11: 44982077874 | C11: 28923426545
A12: Total costo de ventas | B12: =SUM($B$10:B11) -> 44982077874 | C12: =SUM($C$10:C11) -> 28923426545

Sheet Nota 27
A1: =Indice!C1 -> BRICAPAR SA | G1: ER
A5: NOTA 27 - GASTOS
A6: (Esta nota deberá ser incluida cuando en el estado de resultados se haga mención a una cuenta de carácter general o cuyo nombre no permita una adecuada identificación de la naturaleza del gasto y su importe sea significativo)
A8: El rubro está compuesto de la siguiente forma:
A10: Miles de guaraníes
C11: =IFERROR(IF(Indice!B6="","2XX2",YEAR(Indice!B6)),"2XX2") -> 2021 | F11: =+IFERROR(YEAR(Indice!B6-365),"2XX1") -> 2020
B12: Gastos de Ventas | C12: Gastos Administrativos | D12: Total | E12: Gastos de Ventas | F12: Gastos Administrativos | G12: Total
A13: Movilidad y viáticos | B13: 0 | C13: =59822218 -> 59822218 | D13: =+C13+B13 -> 59822218 | E13: 0 | F13: 44643691 | G13: =+F13+E13 -> 44643691
A14: Gastos de alquiler | B14: 0 | C14: 167425500 | D14: =+C14+B14 -> 167425500 | E14: 0 | F14: 164912770 | G14: =+F14+E14 -> 164912770
A15: Servicios básicos | B15: 0 | C15: =244917953-C14 -> 77492453 | E15: 0 | F15: =230676568-F14 -> 65763798 | G15: =+F15+E15 -> 65763798
A16: Computación y redes | B16: 0 | C16: =5451093+3226364 -> 8677457 | D16: =+C16+B16 -> 8677457 | E16: 0 | F16: =5519984+6430908 -> 11950892 | G16: =+F16+E16 -> 11950892
A17: Gastos por servicios | B17: 0 | C17: 0 | D17: 0 | E17: 0 | G17: 0
A18: Honorarios profesionales y asesoramiento | B18: 0 | C18: =550911472+71181819 -> 622093291 | D18: 622093291 | E18: 0 | F18: =204764045+69500000 -> 274264045 | G18: 274264045
A19: Relaciones publicas | B19: 0 | C19: 23087178 | D19: 23087178 | E19: 0 | F19: 4331825 | G19: 4331825
A20: Impuestos y tasas | B20: 0 | C20: 0 | D20: 0 | E20: 0 | F20: 0 | G20: 0
A21: Gastos de reparación y mantenimiento | B21: 0 | C21: 0 | D21: 0 | E21: 0 | F21: 0 | G21: 0
A22: Gastos del personal y capacitación | B22: 0 | C22: 0 | D22: 0 | E22: 0 | F22: 0 | G22: 0
A23: Seguros pagados | B23: 0 | C23: 13573312 | D23: 13573312 | E23: 0 | F23: 10013460 | G23: 10013460
A24: Otros gastos de operación | B24: 0 | C24: 313522141 | D24: 313522141 | E24: 0 | F24: =843060+1576276+38188230+16107131+19443635+101674257+28693706 -> 206526295 | G24: 206526295
A25: Remuneraciones de administradores, directores, síndicos y consejo de vigilancia | B25: 0 | C25: 1200349490 | D25: 1200349490 | E25: 0 | F25: 1054548000 | G25: 1054548000
A26: Sueldos y Jornales | B26: 0 | C26: =708452291+5006250 -> 713458541 | D26: 713458541 | E26: 0 | F26: =475823762+7894224 -> 483717986 | G26: 483717986
A27: Contribuciones Sociales | B27: 0 | C27: =185692027-C34 -> 126654337 | D27: 126654337 | E27: 0 | F27: 78510921 | G27: 78510921
A28: Regalías y Honorarios por servicios técnicos | B28: 0 | C28: 0 | D28: 0 | E28: 0 | F28: 0 | G28: 0
A29: Gastos de Publicidad y Propaganda | B29: 0 | C29: 0 | D29: 0 | E29: 0 | F29: 0 | G29: 0
A30: Intereses, multas y recargos impositivos | B30: 0 | C30: 0 | D30: 0 | E30: 0 | F30: 0 | G30: 0
A31: Intereses a bancos e instituciones financieras | B31: 0 | C31: 0 | D31: 0 | E31: 0 | F31: 0 | G31: 0
A32: Depreciación bienes de uso | B32: 0 | C32: 14723226 | D32: 14723226 | E32: 0 | F32: 88698591 | G32: 88698591
A33: Amortización activos intangibles | B33: 0 | C33: 0 | D33: 0 | E33: 0 | F33: 0 | G33: 0
A34: Previsiones aguinaldos | B34: 0 | C34: 59037690 | D34: 59037690 | E34: 0 | F34: 57051977 | G34: 57051977
A35: Intermediacion comercial | B35: 2796529228 | C35: 0 | D35: 2796529228 | E35: 3182003106 | F35: 0 | G35: 3182003106
A36: Gastos varios de ventas | B36: =470503932+26524461 -> 497028393 | C36: 0 | D36: 497028393 | E36: =304724745+32100546+14653581 -> 351478872 | F36: 0 | G36: 351478872
A37: Total | B37: =+SUM(B$13:$B36) -> 3293557621 | C37: =+SUM(C$13:$C36) -> 3399916834 | D37: =+SUM(D$13:$D36) -> 6615982002 | E37: =+SUM($E$13:E36) -> 3533481978 | F37: =+SUM($F$13:F36) -> 2544934251 | G37: =+SUM($G$13:G36) -> 6078416229

Sheet Nota 28
A1: =Indice!C1 -> BRICAPAR SA | E1: ER
A4: Nota 28 - Otros Ingresos y gastos operativos
A6: Miles de guaraníes
A8: Otros ingresos | B8: =IFERROR(IF(Indice!B6="","2XX2",YEAR(Indice!B6)),"2XX2") -> 2021 | C8: =+IFERROR(YEAR(Indice!B6-365),"2XX1") -> 2020 | E8: Otros gastos | F8: =IFERROR(IF(Indice!B6="","2XX2",YEAR(Indice!B6)),"2XX2") -> 2021 | G8: =+IFERROR(YEAR(Indice!B6-365),"2XX1") -> 2020
A9: Descuentos Obtenidos | B9: 27273 | C9: 0 | E9: Egresos Varios | F9: =371549374+494182 -> 372043556 | G9: 24226252
A10: Varios Ingresos Extraordinario* | B10: 4120382379 | C10: =39200000+949431050 -> 988631050 | E10: Descuentos Concedidos | F10: 34253050 | G10: 221447686
A11: Ingresos Alquiler | B11: 331256135 | C11: 0 | E11: Costo Venta Credito Tributario | F11: 3294000000 | G11: 40000000
A12: Venta de Activo Fijo | B12: 49643636 | C12: 37685454 | E12: Diferencia de Cambio (-) | F12: 1959654626 | G12: 9268557016
A13: Diferencia de Cambio (+) | B13: 2759167849 | C13: 3143733802 | E13: Costo Casino | F13: 0 | G13: 6777280
A14: Ventas Bolsas Vacias | B14: 1024384599 | C14: 18182 | E14: Costo de Venta Bolsas Vacias | F14: 10804948 | G14: 4558325
A15: Ventas Cascara QB | B15: 49978546 | C15: 0 | E15: Costo por Venta Cascara QB | F15: 4727274 | G15: 0
A16: Donaciones y Muestras | B16: 0 | C16: 2470643 | E16: Total | F16: =-SUM($F$9:F15) -> -5675483454 | G16: =-SUM($G$9:G15) -> -9565566559
A17: Total | B17: =SUM($B$9:B16) -> 8334840417 | C17: =SUM($C$9:C16) -> 4172539131
A19: Varios Ingresos Extraordinario*
A20: Venta de Crédito Tributario | B20: 3178710000 | F20: =+B13-F12 -> 799513223 | G20: =+C13-G12 -> -6124823214
A21: (Recupero IVA Exportador)
A22: Descuento Bco. Continental (factura) | B22: =243483068-132242540+42867971 -> 154108499
A23: Canón contratistas | B23: 746915162
A24: Devolución intereres accionistas (MJG) | B24: 40648718
B25: =SUM(B20:B24) -> 4120382379

Sheet Nota 29
A1: =Indice!C1 -> BRICAPAR SA | E1: ER
A5: NOTA 29 - INGRESOS Y GASTOS FINANCIEROS NETOS
A6: Miles de guaraníes
A8: Ingresos Financieros netos | B8: =IFERROR(IF(Indice!B6="","2XX2",YEAR(Indice!B6)),"2XX2") -> 2021 | C8: =+IFERROR(YEAR(Indice!B6-365),"2XX1") -> 2020 | E8: Gastos Financieros netos | F8: =IFERROR(IF(Indice!B6="","2XX2",YEAR(Indice!B6)),"2XX2") -> 2021 | G8: =+IFERROR(YEAR(Indice!B6-365),"2XX1") -> 2020
A9: (Detallar cuentas) | E9: Intereses Accionistas | F9: 837027760 | G9: 544457890
E10: Intereses préstamos Terceros | F10: 191586963 | G10: 545186007
E11: Intereses prestamos bancarios | F11: 9740230411 | G11: 4372889264
E12: Intereses por sobregiros/otros | F12: 378872347 | G12: 1034979487
E13: Otros Gastos Bancarios | F13: 493457302 | G13: 538902658
A14: Total ingresos financieros | B14: =SUM($B9:B13) -> 0 | C14: =SUM($C9:C13) -> 0 | E14: Total gastos financieros | F14: =SUM($F9:F13) -> 11641174783 | G14: =SUM($G9:G13) -> 7036415306

Sheet Nota 30
A1: =Indice!C1 -> BRICAPAR SA | E1: ER
B2: NO APLICABLE
A4: Nota 34 - Resultado de inversiones en asociadas
A5: Miles de guaraníes
A8: Resultado de inversiones en asociadas | B8: =IFERROR(IF(Indice!B6="","2XX2",YEAR(Indice!B6)),"2XX2") -> 2021 | C8: =+IFERROR(YEAR(Indice!B6-365),"2XX1") -> 2020
A9: (Detallar cuenta)
A16: Total | B16: =SUM($B9:B15) -> 0 | C16: =SUM($C9:C15) -> 0

Sheet Nota 31
A1: =Indice!C1 -> BRICAPAR SA | E1: ER
B2: NO APLICABLE
A4: Nota 31 - Resultado participación minoritaria
A5: Miles de guaraníes
A8: Resultado participación minoritaria | B8: =IFERROR(IF(Indice!B6="","2XX2",YEAR(Indice!B6)),"2XX2") -> 2021 | C8: =+IFERROR(YEAR(Indice!B6-365),"2XX1") -> 2020
A9: (Detallar cuenta)
A16: Total | B16: =SUM($B9:B15) -> 0 | C16: =SUM($C9:C15) -> 0

Sheet Nota 32
A1: =Indice!C1 -> BRICAPAR SA | E1: ER
A4: Nota 32 - IMPUESTO A LA RENTA
A5: En miles de guaraníes
B7: =IFERROR(IF(Indice!B6="","2XX2",YEAR(Indice!B6)),"2XX2") -> 2021 | C7: =+IFERROR(YEAR(Indice!B6-365),"2XX1") -> 2020
A8: Impuesto a la renta
A14: Total | B14: =SUM($B8:B13) -> 0 | C14: =SUM($C8:C13) -> 0

Sheet Nota 33
A1: =Indice!C1 -> BRICAPAR SA | E1: ER
C2: NO APLICABLE
A4: Nota 33 - Resultado extraordinario neto de impuesto a la renta
A5: En miles de guaraníes
B7: =IFERROR(IF(Indice!B6="","2XX2",YEAR(Indice!B6)),"2XX2") -> 2021 | C7: =+IFERROR(YEAR(Indice!B6-365),"2XX1") -> 2020
A8: Conceptos
A9: (Detallar)
A15: Total | B15: =SUM($B8:B14) -> 0 | C15: =SUM($C8:C14) -> 0

Sheet Nota 34
A1: =Indice!C1 -> BRICAPAR SA | E1: ER
B2: NO APLICABLE
A4: Nota 34 - Resultado sobre actividades discontinuadas neto de impuesto a la renta
A5: En miles de guaraníes
A7: Resultado sobre actividades discontinuadas neto de impuesto a la renta | B7: =IFERROR(IF(Indice!B6="","2XX2",YEAR(Indice!B6)),"2XX2") -> 2021 | C7: =+IFERROR(YEAR(Indice!B6-365),"2XX1") -> 2020
A9: (nueva cuenta a incluir)
A10: Subtotal
A11: - Impuesto a la renta
A12: Total | B12: =SUM($B8:B11) -> 0 | C12: =SUM($C8:C11) -> 0

Sheet Nota 35
A1: =Indice!C1 -> BRICAPAR SA | E1: ER
A4: NOTA 35- UTILIDAD (PÉRDIDA) NETA DEL AÑO Y POR ACCION ORDINARIA
A5: La Sociedad calcula la utilidad (pérdida) neta por acción sobre la base de la utilidad (pérdida) del año y 20.000 acciones ordinarias nominativas de valor nominal G/ 3.000.000 cada una con derecho a 1 voto por acción.
B7: =IFERROR(IF(Indice!B6="","2XX2",YEAR(Indice!B6)),"2XX2") -> 2021 | C7: =+IFERROR(YEAR(Indice!B6-365),"2XX1") -> 2020
A8: Cantidad de Acciones Ordinarias en Circulación | B8: 20000 | C8: 20000
A9: Utilidad Neta | B9: 168985628 | C9: -8163284556
A10: Utilidad Neta por Acción Ordinaria | B10: =IFERROR(B9/B8,0) -> 8449.2814 | C10: =IFERROR(C9/C8,0) -> -408164.2278

Sheet Nota 36
A1: =Indice!C1 -> BRICAPAR SA | E1: Indice
C3: NO APLICABLE
A4: NOTA 36 - ACTIVOS GRAVADOS
A6: Los siguientes bienes de propiedad de la Sociedad han sido hipotecados y prendados en garantía de obligaciones financieras.
A8: =IFERROR("Al "&DAY(Indice!B6)&" de "&VLOOKUP(MONTH(Indice!B6),Indice!S:T,2,0)&" de "&YEAR(Indice!B6-365),"Al dia... de mes… de año 2XX1…") -> Al 30 de Septiembre de 2020
A9: Tipo de Activo | B9: Datos del activo gravado | C9: Tipo de garantía | D9: Importe (indicar moneda) | E9: A favor de
A15: =IFERROR("Al "&DAY(Indice!B6)&" de "&VLOOKUP(MONTH(Indice!B6),Indice!S:T,2,0)&" de "&YEAR(Indice!B6-1),"Al dia... de mes… de año 2XX2…") -> Al 30 de Septiembre de 2021
A16: Tipo de Activo | B16: Datos del activo gravado | C16: Tipo de garantía | D16: Importe (indicar moneda) | E16: A favor de

Sheet Nota 37
A1: =Indice!C1 -> BRICAPAR SA | E1: Indice
C3: NO APLICABLE
A4: NOTA 37 - CONTINGENCIAS Y COMPROMISOS
A5: =IFERROR("Los principales contratos suscriptos por la Sociedad, vigentes al "&DAY(Indice!B6)&" de "&VLOOKUP(MONTH(Indice!B6),Indice!S:T,2,0)&" de "&YEAR(Indice!B6-1)&" son:","Los principales contratos suscriptos por la Sociedad, vigentes al … de … 20X2 son:") -> Los principales contratos suscriptos por la Sociedad, vigentes al 30 de Septiembre de 2021 son:
A6: a)
A7: b)
A10: =IFERROR("Al "&DAY(Indice!B6)&" de "&VLOOKUP(MONTH(Indice!B6),Indice!S:T,2,0)&" de "&YEAR(Indice!B6-1)&" no existen situaciones contingentes, ni reclamos que pudieran resultar en la generación de obligaciones para la Sociedad adicionales a las que se presentan en estos estados financieros.","Al … de …………... 20X2 no existen situaciones contingentes, ni reclamos que pudieran resultar en la generación de obligaciones para la Sociedad adicionales a las que se presentan en estos estados financieros.") -> Al 30 de Septiembre de 2021 no existen situaciones contingentes, ni reclamos que pudieran resultar en la generación de obligaciones para la Sociedad adicionales a las que se presentan en estos estados financieros.

Sheet Nota 38
A1: =Indice!C1 -> BRICAPAR SA | D1: Índice
B3: NO APLICABLE
A4: NOTA 38 - IMPUESTO DIFERIDO
A5: En miles de guaraníes
A6: Al … de …........... 20X2 la Sociedad constituyó una provisión para impuesto a la renta de Guaraníes …... (Al … de …...............20X1: Guaraníes …....) / (La Sociedad no ha constituido provisión para impuesto a la renta, debido a que a esa fecha la misma generó renta imponible que fue compensada con quebrantos impositivos acumulados a esa fecha).
A7: La Sociedad contabiliza el impuesto a la renta por el método de lo diferido, método del pasivo. El mencionado método establece la determinación de activos o pasivos impositivos diferidos netos basados en las diferencias temporales y temporarias, con cargo a la línea Impuesto a la renta del Estado de resultados.
A9: El siguiente cuadro detalla las diferencias temporales a la tasa del impuesto a los efectos de determinación del impuesto diferido:
B11: =IFERROR(IF(Indice!B6="","2XX2",YEAR(Indice!B6)),"2XX2") -> 2021 | C11: =+IFERROR(YEAR(Indice!B6-365),"2XX1") -> 2020
A12: Activos y pasivos impositivos diferidos:
A13: Caja y Bancos
A14: Inversiones
A15: Previsión para deudores incobrables
A16: Bienes de uso
A17: Activos intangibles
A18: Previsión del pasivo
A19: Deudas comerciales y bancarias
A20: Bienes de cambio
A21: Sub - total
A22: Previsión para impuestos diferidos netos
A23: Total activo/pasivo impositivo diferido neto antes de quebrantos
A24: Quebranto impositivo
A25: Total

Sheet Nota 39
A1: =Indice!C1 -> BRICAPAR SA | E1: Indice
A5: NOTA 39 - HECHOS POSTERIORES
A8: Entre la fecha de cierre del ejercicio y la fecha de preparación de estos estados financieros, no han ocurrido hechos significativos de carácter financiero o de otra índole que afecten la situación patrimonial o financiera o los resultados de la Sociedad al 30 de setiembre de 2021.-

Sheet Nota 40
A1: =Indice!C1 -> BRICAPAR SA | C1: Indice
B3: NO APLICABLE
A5: NOTA 40 - SALDOS Y TRANSACCIONES CON PARTES RELACIONADAS
A6: Miles de guaraníes
B10: =IFERROR(IF(Indice!B6="","2XX2",YEAR(Indice!B6)),"2XX2") -> 2021 | C10: =+IFERROR(YEAR(Indice!B6-365),"2XX1") -> 2020
A11: ACTIVO
A12: Inversiones temporales
A13: Cuentas a cobrar comerciales
A14: Otros créditos
A15: Total activo
A16: PASIVO
A17: Cuentas por pagar comerciales
A18: Préstamos a corto plazo
A19: Provisiones
A20: Préstamos a largo plazo
A21: Otros pasivos
A22: Total pasivo
B26: =IFERROR(IF(Indice!B6="","2XX2",YEAR(Indice!B6)),"2XX2") -> 2021 | C26: =+IFERROR(YEAR(Indice!B6-365),"2XX1") -> 2020
A27: Costo de ventas
A28: Compras a ….
A30: Gastos administrativos
A31: Honorarios por servicios
A32: Otros
A33: Gastos financieros
A34: Intereses pagados por préstamos

Sheet Base de Monedas
A1: PYG | B1: Guaraní | C1: Índice
A2: USD | B2: Dólar estadounidense
A3: EUR | B3: Euro
A4: AED | B4: Dírham de los Emiratos Árabes Unidos
A5: AFN | B5: Afgani
A6: ALL | B6: Lek
A7: AMD | B7: Dram armenio
A8: ANG | B8: Florín antillano neerlandés
A9: AOA | B9: Kwanza
A10: ARS | B10: Peso argentino
A11: AUD | B11: Dólar australiano
A12: AWG | B12: Florín arubeño
A13: AZN | B13: Manat azerbaiyano
A14: BAM | B14: Marco convertible
A15: BBD | B15: Dólar de Barbados
A16: BDT | B16: Taka
A17: BGN | B17: Lev búlgaro
A18: BHD | B18: Dinar bareiní
A19: BIF | B19: Franco de Burundi
A20: BMD | B20: Dólar bermudeño
A21: BND | B21: Dólar de Brunéi
A22: BOB | B22: Boliviano
A23: BOV | B23: MVDOL
A24: BRL | B24: Real brasileño
A25: BSD | B25: Dólar bahameño
A26: BTN | B26: Ngultrum
A27: BWP | B27: Pula
A28: BYN | B28: Rublo bielorruso
A29: BZD | B29: Dólar beliceño
A30: CAD | B30: Dólar canadiense
A31: CDF | B31: Franco congoleño
A32: CHE | B32: Euro WIR
A33: CHF | B33: Franco suizo
A34: CHW | B34: Franco WIR
A35: CLF | B35: Unidad de fomento
A36: CLP | B36: Peso chileno
A37: CNY | B37: Yuan chino
A38: COP | B38: Peso colombiano
A39: COU | B39: Unidad de valor real
A40: CRC | B40: Colón costarricense
A41: CUC | B41: Peso convertible
A42: CUP | B42: Peso cubano
A43: CVE | B43: Escudo caboverdiano
A44: CZK | B44: Corona checa
A45: DJF | B45: Franco yibutiano
A46: DKK | B46: Corona danesa
A47: DOP | B47: Peso dominicano
A48: DZD | B48: Dinar argelino
A49: EGP | B49: Libra egipcia
A50: ERN | B50: Nakfa
A51: ETB | B51: Birr etíope
A52: FJD | B52: Dólar fiyiano
A53: FKP | B53: Libra malvinense
A54: GBP | B54: Libra esterlina
A55: GEL | B55: Lari
A56: GHS | B56: Cedi ghanés
A57: GIP | B57: Libra de Gibraltar
A58: GMD | B58: Dalasi
A59: GNF | B59: Franco guineano
A60: GTQ | B60: Quetzal
A61: GYD | B61: Dólar guyanés
A62: HKD | B62: Dólar de Hong Kong
A63: HNL | B63: Lempira
A64: HRK | B64: Kuna
A65: HTG | B65: Gourde
A66: HUF | B66: Forinto
A67: IDR | B67: Rupia indonesia
A68: ILS | B68: Nuevo shéquel israelí
A69: INR | B69: Rupia india
A70: IQD | B70: Dinar iraquí
A71: IRR | B71: Rial iraní
A72: ISK | B72: Corona islandesa
A73: JMD | B73: Dólar jamaiquino
A74: JOD | B74: Dinar jordano
A75: JPY | B75: Yen
A76: KES | B76: Chelín keniano
A77: KGS | B77: Som
A78: KHR | B78: Riel
A79: KMF | B79: Franco comorense
A80: KPW | B80: Won norcoreano
A81: KRW | B81: Won
A82: KWD | B82: Dinar kuwaití
A83: KYD | B83: Dólar de las Islas Caimán
A84: KZT | B84: Tenge
A85: LAK | B85: Kip
A86: LBP | B86: Libra libanesa
A87: LKR | B87: Rupia de Sri Lanka
A88: LRD | B88: Dólar liberiano
A89: LSL | B89: Loti
A90: LYD | B90: Dinar libio
A91: MAD | B91: Dírham marroquí
A92: MDL | B92: Leu moldavo
A93: MGA | B93: Ariary malgache
A94: MKD | B94: Denar
A95: MMK | B95: Kyat
A96: MNT | B96: Tugrik
A97: MOP | B97: Pataca
A98: MRU | B98: Uguiya
A99: MUR | B99: Rupia de Mauricio
A100: MVR | B100: Rufiyaa
A101: MWK | B101: Kwacha
A102: MXN | B102: Peso mexicano
A103: MXV | B103: Unidad de Inversión (UDI) mexicana
A104: MYR | B104: Ringgit malayo
A105: MZN | B105: Metical mozambiqueño
A106: NAD | B106: Dólar namibio
A107: NGN | B107: Naira
A108: NIO | B108: Córdoba
A109: NOK | B109: Corona noruega
A110: NPR | B110: Rupia nepalí
A111: NZD | B111: Dólar neozelandés
A112: OMR | B112: Rial omaní
A113: PAB | B113: Balboa
A114: PEN | B114: Sol
A115: PGK | B115: Kina
A116: PHP | B116: Peso filipino
A117: PKR | B117: Rupia pakistaní
A118: PLN | B118: Złoty
A119: QAR | B119: Riyal qatarí
A120: RON | B120: Leu rumano
A121: RSD | B121: Dinar serbio
A122: RUB | B122: Rublo ruso
A123: RWF | B123: Franco ruandés
A124: SAR | B124: Riyal saudí
A125: SBD | B125: Dólar de las Islas Salomón
A126: SCR | B126: Rupia seychelense
A127: SDG | B127: Dinar sudanés
A128: SEK | B128: Corona sueca
A129: SGD | B129: Dólar de Singapur
A130: SHP | B130: Libra de Santa Elena
A131: SLL | B131: Leone
A132: SOS | B132: Chelín somalí
A133: SRD | B133: Dólar surinamés
A134: SSP | B134: Libra sursudanesa
A135: STN | B135: Dobra
A136: SVC | B136: Colon Salvadoreño
A137: SYP | B137: Libra siria
A138: SZL | B138: Lilangeni
A139: THB | B139: Baht
A140: TJS | B140: Somoni tayiko
A141: TMT | B141: Manat turcomano
A142: TND | B142: Dinar tunecino
A143: TOP | B143: Paʻanga
A144: TRY | B144: Lira turca
A145: TTD | B145: Dólar de Trinidad y Tobago
A146: TWD | B146: Nuevo dólar taiwanés
A147: TZS | B147: Chelín tanzano
A148: UAH | B148: Grivna
A149: UGX | B149: Chelín ugandés
A150: USN | B150: Dólar estadounidense (Siguiente día)
A151: UYI | B151: Peso en Unidades Indexadas (Uruguay)
A152: UYU | B152: Peso uruguayo
A153: UYW | B153: Unidad Previsional
A154: UZS | B154: Som uzbeko
A155: VES7​ | B155: Bolívar soberano
A156: VND | B156: Dong vietnamita
A157: VUV | B157: Vatu
A158: WST | B158: Tala
A159: XAF | B159: Franco CFA de África Central
A160: XAG | B160: Plata (una onza troy)
A161: XAU | B161: Oro (una onza troy)
A162: XBA | B162: Unidad compuesta europea (EURCO) (Unidad del mercados de bonos)
A163: XBB | B163: Unidad Monetaria europea (E.M.U.-6) (Unidad del mercado de bonos)
A164: XBC | B164: Unidad europea de cuenta 9 (E.U.A.-9) (Unidad del mercado de bonos)
A165: XBD | B165: Unidad europea de cuenta 17 (E.U.A.-17) (Unidad del mercado de bonos)
A166: XCD | B166: Dólar del Caribe Oriental
A167: XDR | B167: Derechos especiales de giro
A168: XOF | B168: Franco CFA de África Occidental
A169: XPD | B169: Paladio (una onza troy)
A170: XPF | B170: Franco CFP
A171: XPT | B171: Platino (una onza troy)
A172: XSU | B172: SUCRE
A173: XTS | B173: Reservado para pruebas
A174: XUA | B174: Unidad de cuenta BAD
A175: XXX | B175: Sin divisa
A176: YER | B176: Rial yemení
A177: ZAR | B177: Rand
A178: ZMW | B178: Kwacha zambiano
A179: ZWL | B179: Dólar zimbabuense
